Cogmind - Beta 17.1 @@@ ROGUE MODE // 2026.09.23 @ 17:51:18 Player: naththebg Result: Destroyed by H-88 Terminator with KE Penetrator Performance ------------- Evolutions (9) 4500 Regions Visited (40) 8000 Robots Destroyed (490) 2450 Value Destroyed (34147) 34147 Prototype IDs (141) 2820 Alien Tech Used (3) 600 Bonus (50586) 50586 TOTAL SCORE: 103103 Bonus ------- High Alert Combat Kills 3588 Follower Combat Kills 23392 Hunted by Unchained 500 Entered Garrisons 3000 Used RIF Installer 9500 Aligned with FarCom 300 Scanned by Researcher 500 Destroyed MAIN.C Guards 500 Met MAIN.C 5000 Destroyed MAIN.C Shell 5000 Friendly Fire -694 Cogmind --------- Core Integrity 0/1600 Matter 261/300 Energy 64/100 System Corruption 10% Temperature Cool (0) Movement Core (50) Location -1/Command Parts ------- > --- POWER (1) -------- (None) > --- PROPULSION (2) --- (None) > --- UTILITY (20) ----- Relay Coupler [Grunt] (37) Relay Coupler [Sentry] (29) > --- WEAPON (2) ------- (None) > --- INVENTORY (5) ---- Experimental EM Shield Peak State ------------ > --- POWER ------------ Concept Zero-point Core > --- PROPULSION ------- Armored Huge Wheel > --- UTILITY ---------- Huge Storage Unit Superbattery Enhanced Optical Array Experimental Weapon Cycler Concept Core Shell Centrium Heavy Armor Plating Phase Armor Experimental Remote Shield Concept Antimissile System Relay Coupler [NC] Relay Coupler [Swarmer] Relay Coupler [Grunt] Relay Coupler [Grunt] Relay Coupler [Sentry] Relay Coupler [Hunter] Relay Coupler [Proto] > --- WEAPON ----------- Compact HERF Cannon Advanced Remote Datajack > --- INVENTORY -------- Improved Quantum Reactor Experimental Antimatter Reactor Concept Zero-point Core Advanced Power Amplifier Advanced Cooling System Matter Compressor Experimental Targeting Computer Advanced Weapon Cycler Experimental EM Shield Advanced Remote Force Field Relay Coupler [NC] Relay Coupler [Swarmer] Relay Coupler [Grunt] Relay Coupler [Duelist] Relay Coupler [Sentry] Crosscalibrator Subatomic Replicator Enhanced Hardcell Cannon Hellfire Missile Launcher Hellfire Missile Launcher Sigix Terminator Advanced Remote Datajack Advanced Remote Datajack [Rating: 189] Favorites ----------- Power Improved Quantum Reactor Engine Cooled Deuterium Engine Power Core Concept Zero-point Core Reactor Improved Quantum Reactor Propulsion Armored Huge Wheel Treads Light Treads Leg Myomer Leg Wheel Armored Huge Wheel Hover Unit Backup Propulsion VII Utility Relay Coupler [Grunt] Device Advanced Weapon Cycler Storage Huge Storage Unit Processor Enhanced Optical Array Hackware Relay Coupler [Grunt] Protection Advanced Powered Armor Artifact Phase Armor Weapon Enhanced Hardcell Cannon Energy Gun EM Shotgun Energy Cannon Particle Cannon Ballistic Gun Concept XC Strikerail Ballistic Cannon Enhanced Hardcell Cannon Launcher Shock Bomb Launcher Special Weapon Advanced Remote Datajack Impact Weapon Power Maul Build | -11 -10 -10 -9 -9 -9 -8 -8 -8 -8 -8 -7 -7 -7 -7 -7 -7 -6 -6 -6 -6 -5 -5 -5 -5 -4 -4 -4 -4 -3 -3 -2 -2 -2 -2 -2 -2 -1 -1 -1 -1 ------- Run | Yrd Mat Min Mat Min Exi Min Mat Gar Mat Gar Fac Gar Fac Gar Fac Gar Fac Gar Fac Gar Fac Gar Fac Gar Fac Gar Fac Gar Res Gar Res Gar Res Qua Frg Gar Acc Gar Acc Com Slots Evolved 18 | . . . 2 . . . 2 . . . 2 . . . . . 2 . . . 2 . . . 2 . . . 2 . 2 . . . . . 2 . . . Power . | . . . . . . . . . . . . . . . . . . . . . . . . . . . . . . . . . . . . . . . . . Propulsion . | . . . . . . . . . . . . . . . . . . . . . . . . . . . . . . . . . . . . . . . . . Utility 18 | . . . 2 . . . 2 . . . 2 . . . . . 2 . . . 2 . . . 2 . . . 2 . 2 . . . . . 2 . . . Weapon . | . . . . . . . . . . . . . . . . . . . . . . . . . . . . . . . . . . . . . . . . . Parts Attached 303 | 5 9 1 23 2 . 4 6 9 11 16 6 9 1 12 . 5 2 9 9 7 13 17 1 10 2 6 3 8 7 15 1 8 1 9 13 21 6 9 1 6 Power 23 | 1 . . 3 . . . . 1 2 1 . 1 . . . . . . 4 . . 2 . 2 . . . . . 1 . . . 2 2 1 . . . . Engine 10 | 1 . . 3 . . . . 1 1 . . . . . . . . . 3 . . 1 . . . . . . . . . . . . . . . . . . Core 6 | . . . . . . . . . 1 1 . 1 . . . . . . 1 . . . . . . . . . . . . . . . 1 1 . . . . Reactor 7 | . . . . . . . . . . . . . . . . . . . . . . 1 . 2 . . . . . 1 . . . 2 1 . . . . . Propulsion 24 | 2 . 1 5 1 . . . 1 1 2 1 1 . . . . . . . 1 . 1 . . . . . . . . . . . . . 2 3 1 . 1 Treads 4 | 2 . 1 1 . . . . . . . . . . . . . . . . . . . . . . . . . . . . . . . . . . . . . Leg 3 | . . . . . . . . . . . . . . . . . . . . . . . . . . . . . . . . . . . . 2 1 . . . Wheel 17 | . . . 4 1 . . . 1 1 2 1 1 . . . . . . . 1 . 1 . . . . . . . . . . . . . . 2 1 . 1 Hover . | . . . . . . . . . . . . . . . . . . . . . . . . . . . . . . . . . . . . . . . . . Flight . | . . . . . . . . . . . . . . . . . . . . . . . . . . . . . . . . . . . . . . . . . Utility 197 | 1 3 . 13 . . 2 5 4 4 7 5 7 . 11 . 3 2 8 3 5 12 9 . 6 2 6 3 8 4 10 . 8 1 5 10 16 2 7 1 4 Device 41 | . 1 . 8 . . 1 3 1 1 1 2 1 . . . . . . . . 2 1 . 2 1 2 1 1 1 . . 1 . . 6 3 . 1 . . Storage 12 | 1 1 . 2 . . . . . . . . . . . . . . . 1 . 1 . . 1 1 . 1 . . 1 . . . 1 . . . . . 1 Processor 6 | . 1 . . . . . . . 1 1 . . . . . . . . 1 . . . . . . . . . . . . . . . . 1 . . 1 . Hackware 110 | . . . . . . . . 2 . 1 2 6 . 10 . 3 2 8 1 4 4 8 . 3 . 4 1 5 1 9 . 7 1 3 2 12 2 6 . 3 Protection 27 | . . . 3 . . 1 2 1 2 4 1 . . 1 . . . . . 1 5 . . . . . . 2 2 . . . . . 2 . . . . . Artifact 1 | . . . . . . . . . . . . . . . . . . . . . . . . . . . . . . . . . . 1 . . . . . . Weapon 59 | 1 6 . 2 1 . 2 1 3 4 6 . . 1 1 . 2 . 1 2 1 1 5 1 2 . . . . 3 4 1 . . 2 1 2 1 1 . 1 Energy Gun 9 | 1 4 . . . . . . 1 2 . . . . . . . . . . . . . . . . . . . . . . . . 1 . . . . . . Energy Cannon 8 | . 2 . 2 . . 1 1 . . . . . . . . . . . 1 . . . . 1 . . . . . . . . . . . . . . . . Ballistic Gun 3 | . . . . . . . . . . . . . . . . . . . . . . . . . . . . . . . . . . . 1 . 1 1 . . Ballistic Cannon 17 | . . . . . . 1 . . 2 4 . . . 1 . . . . 1 1 . 3 . . . . . . 1 1 . . . . . 2 . . . . Launcher 8 | . . . . 1 . . . 2 . . . . . . . . . . . . . 1 . . . . . . 2 1 . . . . . . . . . 1 Special Weapon 13 | . . . . . . . . . . 1 . . 1 . . 2 . 1 . . 1 1 1 1 . . . . . 2 1 . . 1 . . . . . . Impact Weapon 1 | . . . . . . . . . . 1 . . . . . . . . . . . . . . . . . . . . . . . . . . . . . . Slashing Weapon . | . . . . . . . . . . . . . . . . . . . . . . . . . . . . . . . . . . . . . . . . . Piercing Weapon . | . . . . . . . . . . . . . . . . . . . . . . . . . . . . . . . . . . . . . . . . . Special Melee Weapon . | . . . . . . . . . . . . . . . . . . . . . . . . . . . . . . . . . . . . . . . . . Unidentified Prototypes 19 | . . . 2 . . . . . . . . . . . . . . . 3 1 . . . 2 . . . . 1 . . . . 2 6 . . 1 . 1 Corrupted Parts 2 | . . . . . . . . . . 1 . . . . . . . . . . . . . . . . . . . . . . . . . . . 1 . . System Corruption 2 | . . . . . . . . . . 1 . . . . . . . . . . . . . . . . . . . . . . . . . . . 1 . . Parts Lost 71 | . 2 3 5 1 . 2 . 7 5 . . 1 . 1 . . . . 2 2 3 2 . . . . . . 1 . . 1 . 2 8 4 . 3 1 15 Power 6 | . . 1 . . . . . 1 2 . . . . . . . . . 1 . . 1 . . . . . . . . . . . . . . . . . . Propulsion 9 | . . 2 1 1 . . . . 1 . . . . . . . . . . 1 . . . . . . . . . . . . . . 1 1 . 1 . . Utility 44 | . . . 3 . . 2 . 4 . . . 1 . 1 . . . . 1 1 3 . . . . . . . 1 . . 1 . 2 5 3 . 2 1 13 Weapon 12 | . 2 . 1 . . . . 2 2 . . . . . . . . . . . . 1 . . . . . . . . . . . . 2 . . . . 2 Highest Loss Streak 14 | . 2 2 1 1 . 2 . 2 2 . . 1 . 1 . . . . 1 1 2 1 . . . . . . 1 . . 1 . 1 2 1 . 1 1 14 To Critical Strikes 1 | . . . . . . . . . . . . . . . . . . . . . . 1 . . . . . . . . . . . . . . . . . . Average Backups 22 | 4 13 14 22 24 24 24 24 23 24 23 22 22 23 21 22 21 20 21 20 20 23 22 24 23 20 21 21 20 19 21 23 22 23 22 21 22 23 23 24 22 Power 1 | . 1 2 1 1 1 1 1 . . . . . 1 1 1 1 2 2 1 1 1 1 1 1 2 1 1 1 1 1 1 1 1 . 1 1 1 . . . Propulsion 2 | 2 7 8 8 8 7 6 6 5 4 2 2 2 2 2 2 1 2 2 2 1 1 . 1 1 1 1 1 1 1 1 1 1 1 1 . . 1 2 1 . Utility 12 | . . 1 4 6 6 8 8 8 12 12 11 13 15 14 15 13 12 14 13 13 16 15 16 14 12 13 14 13 11 13 16 15 16 12 11 14 13 14 16 15 Weapon 4 | 1 4 3 7 9 9 8 7 7 5 5 6 4 3 2 2 2 2 1 2 3 3 4 5 4 4 4 4 4 5 5 4 4 4 4 4 5 5 4 3 3 Tool/Special . | . . . . . . . . . . . . . . . . . . . . . . . . . . . . . . . . . . . . . . . . . Unused Backups 80 | . 4 . 13 . 2 1 1 1 2 5 3 3 1 1 . 2 . 6 4 1 1 2 . 5 . 2 . 2 . 3 . 1 . 1 2 4 . 2 1 4 Power 8 | . 1 . 1 . . . 1 . . . . . . . . . . . 1 . . . . . . . . . . . . . . 1 2 1 . . . . Propulsion 14 | . . . 6 . 2 . . 1 . 1 2 . . . . . . . . . . . . . . . . . . . . . . . . . . 1 1 . Utility 35 | . . . 3 . . . . . 1 3 . 3 . 1 . 2 . 5 1 1 . . . 3 . 2 . 1 . 2 . 1 . . . 3 . . . 3 Weapon 18 | . 3 . 3 . . 1 . . 1 1 1 . . . . . . . 2 . . 1 . 2 . . . 1 . 1 . . . . . . . 1 . . Tool/Special 5 | . . . . . . . . . . . . . 1 . . . . 1 . . 1 1 . . . . . . . . . . . . . . . . . 1 Average Slot Usage (%) 90 | . 95 86 97 99 100 99 97 92 98 99 98 91 92 84 84 82 84 83 85 85 82 85 88 86 88 86 87 93 89 88 86 94 95 92 84 88 93 89 90 89 Engine 2 | . 14 3 10 11 11 11 9 8 4 . . . . . . . . . 5 6 5 2 . . . . . . . . . . . . . . . . . . Core 2 | . . . . . . . . . 3 9 7 7 7 7 7 7 6 6 . . . . . . . . . . . . . . . . . 3 4 4 4 3 Reactor 1 | . . . . . . . . . . . . . . . . . . . . . . 2 5 5 5 5 5 5 4 4 4 4 4 3 3 . . . . . Treads 1 | . 27 26 8 . . . . . . . . . . . . . . . . . . . . . . . . . . . . . . . . . . . . . Wheel 6 | . . . 13 21 22 22 18 18 17 17 14 7 7 7 7 7 6 6 6 6 5 5 5 5 5 5 5 5 4 4 4 4 4 4 4 3 2 4 4 3 Device 7 | . 2 14 21 22 22 21 25 32 10 8 7 4 . . . . . . . . . . . . 5 8 10 8 9 9 8 8 8 8 8 11 8 8 8 7 Storage 8 | . 14 14 11 11 11 11 9 9 9 9 7 7 7 7 7 7 6 6 6 6 5 5 5 5 9 10 10 10 9 9 8 8 8 8 8 7 8 8 8 7 Processor 5 | . 8 . . . . . . . 8 14 15 15 15 7 7 7 6 6 6 6 5 5 5 5 5 5 5 5 4 4 4 4 4 4 4 7 8 8 8 7 Hackware 29 | . . . . . . . . 1 9 8 17 24 30 29 30 30 39 37 39 39 38 36 41 39 36 30 29 32 28 28 34 42 43 42 36 39 46 45 46 46 Protection 8 | . . . 9 11 11 11 16 7 15 13 11 7 7 7 7 7 6 6 6 6 8 13 11 11 10 10 10 14 18 17 13 13 13 9 5 3 4 4 4 3 Energy Cannon 2 | . 6 28 21 18 22 11 16 9 . . . . . . . . . . . . . . . . . . . . . . . . . . . . . . . . Ballistic Cannon 4 | . . . . . . 9 1 1 14 13 7 7 7 6 7 5 4 5 5 5 5 4 3 4 4 4 4 4 3 3 2 3 4 4 2 3 1 2 4 3 Special Weapon 3 | . . . . . . . . . . 1 6 6 7 7 7 7 6 6 6 6 5 4 7 4 5 5 5 5 3 3 5 4 4 3 2 3 4 4 3 3 Peak Build Rating 189 | 5 12 11 24 24 27 27 33 36 42 42 50 55 54 59 59 59 64 65 70 74 87 92 89 95 105 114 111 116 132 130 126 133 132 160 189 168 176 168 172 176 Average Rating 91 | 3 11 10 20 23 25 26 31 32 38 40 45 51 54 58 59 58 63 63 66 70 77 86 87 89 104 107 109 113 127 126 125 131 131 144 167 160 167 159 169 165 On Entrance 79 | . 5 11 9 24 24 27 27 33 34 38 41 49 54 54 59 59 59 61 65 64 73 86 89 86 90 105 103 102 116 120 126 125 132 131 160 147 154 163 166 168 Avg Prop Armor Cover (%) 6 | . . . 12 . . . . . . . . . . . . . . . . . . . . . . . . . . . . . . . . . . 1 . . Naked Turns 44 | . . . . . . . . . . . . . . . . . . . . . . . . . . . . . . . . . . . . . . . . 44 Heaviest Build 202 | 12 54 54 101 101 101 101 108 108 120 142 122 133 124 124 119 119 119 119 119 117 127 142 139 142 151 152 149 169 198 202 183 183 173 183 198 155 153 160 160 162 Greatest Support 55 | 40 40 40 40 24 24 24 24 24 24 24 28 28 28 28 28 28 28 28 28 28 28 28 28 28 28 28 28 28 28 28 28 28 28 28 28 50 55 32 28 28 Greatest Overweight (x) 9 | 1 1 2 4 4 4 4 4 4 9 5 5 4 4 4 4 4 4 4 4 4 4 5 4 5 5 5 5 6 7 7 6 6 6 6 7 5 9 9 5 9 Average Overweight (x) 4 | . . 1 3 4 4 4 4 4 3 4 4 4 4 3 4 3 4 3 3 3 3 4 4 4 4 4 4 5 6 6 6 6 6 5 5 4 2 5 5 4 Largest Inventory Capacity 25 | 8 20 20 25 25 25 25 25 25 25 25 25 25 25 25 25 25 25 25 25 25 25 25 25 25 25 25 25 25 25 25 25 25 25 25 25 25 25 25 25 25 Average Capacity 24 | 7 19 20 23 25 25 25 25 25 25 25 25 25 25 25 25 25 25 25 25 25 25 25 25 25 25 25 25 25 25 25 25 25 25 25 25 24 25 25 25 24 Most Carried 25 | 8 16 15 25 25 25 25 25 25 25 25 25 25 25 25 25 25 24 25 25 25 25 25 25 25 24 25 25 25 24 25 25 25 25 25 25 25 25 25 25 25 Average Carried 23 | 5 13 14 22 24 24 24 24 23 24 24 24 24 25 24 25 24 23 24 23 23 24 23 25 24 22 24 24 23 21 23 25 24 24 23 23 23 24 24 24 23 Final Capacity 25 | 8 20 20 25 25 25 25 25 25 25 25 25 25 25 25 25 25 25 25 25 25 25 25 25 25 25 25 25 25 25 25 25 25 25 25 25 25 25 25 25 5 Final Carried 25 | 7 15 14 25 24 25 25 25 25 25 25 25 25 25 25 25 25 24 25 24 25 24 25 25 25 22 25 24 23 21 25 25 25 24 25 25 25 25 25 25 1 Class Distribution -------------------- 71% | Botlord-Mutant 16% | Mutant 12% | Bothacker-Mutant Dominant Class ---------------- Mutant | -10/Materials Mutant | -10/Mines Mutant | -9/Materials Mutant | -9/Mines Mutant | -9/Exiles Mutant | -8/Mines Mutant | -8/Materials Mutant | -8/Garrison Bothacker-Mutant | -8/Materials Bothacker-Mutant | -8/Garrison Bothacker-Mutant | -7/Factory Bothacker-Mutant | -7/Garrison Bothacker-Mutant | -7/Factory Botlord-Mutant | -7/Garrison Botlord-Mutant | -7/Factory Botlord-Mutant | -7/Garrison Botlord-Mutant | -6/Factory Botlord-Mutant | -6/Garrison Botlord-Mutant | -6/Factory Botlord-Mutant | -6/Garrison Botlord-Mutant | -5/Factory Botlord-Mutant | -5/Garrison Botlord-Mutant | -5/Factory Botlord-Mutant | -5/Garrison Botlord-Mutant | -4/Factory Botlord-Mutant | -4/Garrison Botlord-Mutant | -4/Factory Botlord-Mutant | -4/Garrison Botlord-Mutant | -3/Research Botlord-Mutant | -3/Garrison Botlord-Mutant | -2/Research Botlord-Mutant | -2/Garrison Botlord-Mutant | -2/Research Botlord-Mutant | -2/Quarantine Botlord-Mutant | -2/Protoforge Botlord-Mutant | -2/Garrison Botlord-Mutant | -1/Access Botlord-Mutant | -1/Garrison Botlord-Mutant | -1/Access Botlord-Mutant | -1/Command Resources | -11 -10 -10 -9 -9 -9 -8 -8 -8 -8 -8 -7 -7 -7 -7 -7 -7 -6 -6 -6 -6 -5 -5 -5 -5 -4 -4 -4 -4 -3 -3 -2 -2 -2 -2 -2 -2 -1 -1 -1 -1 ----------- Run | Yrd Mat Min Mat Min Exi Min Mat Gar Mat Gar Fac Gar Fac Gar Fac Gar Fac Gar Fac Gar Fac Gar Fac Gar Fac Gar Fac Gar Res Gar Res Gar Res Qua Frg Gar Acc Gar Acc Com Matter Collected 26417 | 250 140 10 217 41 . 97 127 620 587 1482 58 750 . 850 . 357 34 922 835 915 871 1508 . 1053 291 615 780 873 642 1936 2 1075 236 1859 1988 1441 279 1222 286 1168 Remotely 10 | . . . . . . . . . . . . . . . . . . . . . 10 . . . . . . . . . . . . . . . . . . . Salvage Created 16577 | . 743 76 2174 116 . 107 453 864 916 1026 16 380 . 194 . 224 . 342 247 328 542 599 . 256 59 168 882 194 355 666 . 430 13 944 645 631 396 978 430 183 Parts 857 | . 47 1 116 10 . 21 21 32 49 70 2 21 . 10 . 14 . 16 19 12 26 45 . 12 3 5 46 9 10 35 . 23 2 42 33 33 14 30 21 7 Haulers Intercepted 11 | . 2 . 6 . . . . . 3 . . . . . . . . . . . . . . . . . . . . . . . . . . . . . . . Recyclers Shooed 5 | . . . . . . . 1 . . . . . . . . . . . 1 . . . . . . . 2 . . . . . . . . . 1 . . . Parts Field Recycled . | . . . . . . . . . . . . . . . . . . . . . . . . . . . . . . . . . . . . . . . . . Retrieved Matter . | . . . . . . . . . . . . . . . . . . . . . . . . . . . . . . . . . . . . . . . . . Parts Self-Destructed . | . . . . . . . . . . . . . . . . . . . . . . . . . . . . . . . . . . . . . . . . . Prevented . | . . . . . . . . . . . . . . . . . . . . . . . . . . . . . . . . . . . . . . . . . Parts Restored 3 | . . . . . . . . . . . . . . . . . . . . . . . . . . . . . . . . . . . 2 1 . . . . Faulty 3 | . . . . . . . . . . . . . . . . . . . . . . . . . . . . . . . . . . . 2 1 . . . . Kills | -11 -10 -10 -9 -9 -9 -8 -8 -8 -8 -8 -7 -7 -7 -7 -7 -7 -6 -6 -6 -6 -5 -5 -5 -5 -4 -4 -4 -4 -3 -3 -2 -2 -2 -2 -2 -2 -1 -1 -1 -1 ------- Run | Yrd Mat Min Mat Min Exi Min Mat Gar Mat Gar Fac Gar Fac Gar Fac Gar Fac Gar Fac Gar Fac Gar Fac Gar Fac Gar Fac Gar Res Gar Res Gar Res Qua Frg Gar Acc Gar Acc Com Combat Hostiles Destroyed 389 | . 17 3 37 5 . 10 8 22 16 37 . 14 . 8 . 7 . 10 3 11 10 20 . 10 5 5 10 4 4 14 . 7 . 11 21 11 2 10 7 30 Guns 24 | . 12 . . . . . . . 5 . . . . . . . . . . . . . . . . . . . . . . . . . 7 . . . . . Cannons 257 | . 2 3 35 2 . 3 7 9 11 27 . 9 . 8 . 7 . 10 3 11 9 12 . 5 1 5 6 4 2 11 . 7 . 10 6 11 2 10 7 2 AOE 100 | . 3 . . 3 . 7 . 11 . 9 . 5 . . . . . . . . 1 8 . 5 4 . 3 . 2 3 . . . 1 7 . . . . 28 Classes Destroyed 28 | . 5 1 5 . . . 1 1 1 1 . 2 . . . . . . . 2 1 1 . . . . 1 . 2 . . . . 1 2 . . . . 1 Worker 16 | . . . 2 . . . . . 1 . . . . . . . . . . . 1 . . . . . 7 . 1 . . . 1 1 . . . . 1 1 Builder 14 | . 1 . 1 . . 2 . . 2 . . . . . . . . . . . 2 . . . . . 1 . . . . . . 3 . . 1 . 1 . Tunneler 2 | . . . . . . . 1 . . . . . . . . . . . . . . . . . . . . . . . . . . . . . . . 1 . Hauler 11 | . 2 . 6 . . . . . 3 . . . . . . . . . . . . . . . . . . . . . . . . . . . . . . . Recycler 12 | . . . 3 . . . . . . . . . . . . . . . 1 . 1 . . . . . 2 . 2 . . . . 1 . . 2 . . . Carrier 3 | . . . . . . . . . . . . . . . . . . . . . . . . . . . . . . . . . . . . . . . . 3 Mechanic 2 | . . . . . . . . . . . . . . . . . . . . . . . . . . . 1 . . . . . . . . . . . . 1 Operator 2 | . . . 1 . . . . . . . . . . . . . . . . . . . . . . . . . . . . . . . . . . . . 1 Drone 2 | . . . . . . . . . . . . . . . . . . . . . . . . . . . . . 1 . . . . . 1 . . . . . Turret 8 | . . . . . . . . . . . . . . . . . . . . . . . . . . . . . 8 . . . . . . . . . . . Watcher 21 | . 3 . 4 . . . 1 . 5 . 1 1 . . . . . . . . . 1 . . . . 2 . . . . . . . 1 . . . 2 . Swarmer 98 | . 6 . 7 3 . 8 . . . 14 . 7 . 3 . 3 . . . . . 10 . 6 5 1 1 . . 4 . 2 . . 5 1 1 1 4 6 Cutter 2 | . . . . . . . . . . . . . . . . . . . . 1 . 1 . . . . . . . . . . . . . . . . . . Saboteur 2 | . . . . . . . . . . . . . . . . . . . . . . 1 . . . . . . . . . . . . . . . . . 1 Grunt 120 | . 11 1 18 2 . 2 5 17 11 7 . 3 . 2 . 2 . 2 . 2 4 6 . 3 . . 1 2 2 . . 1 . 4 . 3 1 2 . 6 Brawler 12 | . . . 2 . . . . 1 . 1 . . . . . . . . . 2 . . . . . . . . . 3 . . . . 1 1 . 1 . . Duelist 6 | . . . . . . . . . . 1 . . . . . . . 1 . . . . . . . . 1 . . . . . . . 1 . . . . 2 Protector 1 | . . . . . . . . . . . . 1 . . . . . . . . . . . . . . . . . . . . . . . . . . . . Researcher 2 | . . . . . . . . . . . . . . . . . . . . . . . . . . . . . . . . . . 2 . . . . . . Sentry 36 | . . . 10 . . . 3 3 4 8 . 1 . 1 . . . 2 . . 2 1 . . . . 1 . . . . . . . . . . . . . Demolisher 5 | . . 2 . . . . . . . . . . . . . . . . . . . . . . . 1 . . . . . . . . . . . . 2 . Specialist 4 | . . . . . . . . . . . . 1 . . . . . 2 . 1 . . . . . . . . . . . . . . . . . . . . Hunter 20 | . . . . . . . . . 1 . . 1 . . . . . . 3 1 1 . . . 1 . 2 . . . . . . 2 3 . . . . 5 Programmer 67 | . . . . . . . . 1 . 6 . . . 2 . 3 . 3 . 4 2 3 . 1 . 2 4 2 1 6 . 3 . 5 . 5 . 4 . 10 Heavy 2 | . . . . . . . . . . . . . . . . . . . . . 1 . . . . . . . . . . . . . . . . . . 1 Q-Series 2 | . . . . . . . . . . . . . . . . . . . . . . . . . . . . . . . . . . . 1 . . . 1 . Behemoth 7 | . . . . . . . . . . . . . . . . . . . . 1 . . . . . 1 . . . 1 . 1 . . . 1 . 2 . . Hotshot 5 | . . . . . . . . . . . . . . . . . . . . . . . . . . . . . . . . . . . 5 . . . . . Decapitator 1 | . . . . . . . . . . . . . . . . . . . . . . . . . . . . . . . . . . . 1 . . . . . Immortal 1 | . . . . . . . . . . . . . . . . . . . . . . . . . . . . . . . . . . . 1 . . . . . Combat Programmer 1 | . . . . . . . . . . . . . . . . . . . . . . . . . . . . . . . . . . . . . . . . 1 V-Series 3 | . . . . . . . . . . . . . . . . . . . . . . . . . . . . . . . . . . . 3 . . . . . Guerrilla 1 | . . . . . . . . . . . . . . . . . . . . . . . . . . . 1 . . . . . . . . . . . . . Best Kill Streak 32 | . 3 2 6 5 . 6 4 5 5 9 1 7 . 2 . 3 . 3 2 3 3 6 . 3 4 1 7 2 9 3 . 2 1 7 4 4 2 2 6 32 Combat Bots Only 28 | . 3 2 5 5 . 4 2 5 3 9 . 7 . 2 . 3 . 3 2 3 3 6 . 3 4 1 2 2 2 3 . 2 . 4 4 4 2 2 6 28 Max Kills in Single Turn 34 | . 2 1 1 3 . 3 1 2 2 2 1 2 . 1 . 1 . 1 1 1 2 3 . 3 5 1 5 1 4 3 . 1 1 1 3 1 1 1 1 34 Gunslinging 1 | . . . . . . . . . 1 . . . . . . . . . . . . . . . . . . . . . . . . . . . . . . . Exploded 28 | . 2 . . 3 . 3 . 2 . 2 . 2 . . . . . . . . 1 3 . 3 4 . 2 . 2 3 . . . 1 3 . . . . 28 Melee . | . . . . . . . . . . . . . . . . . . . . . . . . . . . . . . . . . . . . . . . . . Uniques/NPCs Destroyed 1 | . . . . . . . . . . . . . . . . . . . . . . . . . . . . . . . . . . . . . . . . 1 MAIN.C Shell (-1/Command) Combat | -11 -10 -10 -9 -9 -9 -8 -8 -8 -8 -8 -7 -7 -7 -7 -7 -7 -6 -6 -6 -6 -5 -5 -5 -5 -4 -4 -4 -4 -3 -3 -2 -2 -2 -2 -2 -2 -1 -1 -1 -1 -------- Run | Yrd Mat Min Mat Min Exi Min Mat Gar Mat Gar Fac Gar Fac Gar Fac Gar Fac Gar Fac Gar Fac Gar Fac Gar Fac Gar Fac Gar Res Gar Res Gar Res Qua Frg Gar Acc Gar Acc Com Hostile Shots Fired 2021 | . 52 10 114 14 . 25 28 88 67 137 4 72 . 108 . 82 10 93 17 96 47 67 . 34 4 50 64 33 61 37 7 19 23 96 143 61 3 95 51 109 Missed 627 | . 12 1 34 5 . 10 11 25 21 40 . 21 . 33 . 38 4 30 8 38 10 15 . 12 . 16 29 11 13 13 4 3 4 24 23 18 1 34 24 42 Intercepted 24 | . . . . . . . . . . . . . . . . . . . . . . . . . . . . . . . . . . . 19 . . . 5 . Hits 1394 | . 40 9 80 9 . 15 17 63 46 97 4 51 . 75 . 44 6 63 9 58 37 52 . 22 4 34 35 22 48 24 3 16 19 72 120 43 2 61 27 67 Melee 11 | . . . 1 . . . . . . 2 . . . . . . . . . 5 . . . . . . . . . . . 1 . . 1 . . 1 . . Projectile 1383 | . 40 9 79 9 . 15 17 63 46 95 4 51 . 75 . 44 6 63 9 53 37 52 . 22 4 34 35 22 48 24 3 15 19 72 119 43 2 60 27 67 AOE 58 | . . 9 . . . . . . . . . 7 . . . . . . . . . 1 . 1 . 4 1 . 1 . . 2 . 1 30 . . . 1 . Critical Strikes 76 | . . . 1 . . 1 1 4 2 4 . 1 . 2 . . . 2 3 6 2 4 . 1 . 2 1 2 6 1 . 1 . 4 10 6 . 2 1 6 Actively Blocked 4 | . . . . . . . . . . . . . . . . . . . . . . 1 . . . 1 . . 1 . . . . 1 . . . . . . Part Disruptions 8 | . . . . . . . . . . . . . . . . . . . . . . . . . . . . . 1 . . . . 2 2 . . . . 3 Actively Blocked 3 | . . . . . . . . . . . . . . . . . . . . . . . . . . . . . 1 . . . . 2 . . . . . . Damage Taken 26893 | . 424 373 927 88 . 234 276 1146 816 1217 68 772 12 1121 . 484 163 909 610 1307 863 895 . 483 41 582 672 294 1039 514 37 333 421 1660 3647 685 60 1019 482 2219 Core 4471 | . 66 101 151 . . 61 45 193 32 91 18 108 . 114 . 61 . 83 57 182 33 59 . 10 . 66 44 11 12 38 12 32 19 179 917 74 13 65 . 1524 Absorbed by Shields 5995 | . . . . . . . . . . . . 4 . . . . . . 5 . 236 281 . 148 40 361 555 216 691 234 35 179 131 401 1003 318 57 446 153 501 Redirected to Core 715 | . . . . . . . . . . . . . . . . . . . . . . . . . . . . . . . . . . . 715 . . . . . Redirected to Shielding 637 | . . . 51 . . . 27 . . . . . . . . . . . . . 7 23 . . . 31 42 5 79 8 . 63 26 146 129 . . . . . Ignored by Resistances 509 | . . . . . . . . . . 141 . 116 . . . . . . . . . . . . . . . . . . . . . . . 252 . . . . Regen/Repaired (Parts) 7360 | . . . . . . . . . . . 38 316 12 468 . 423 157 800 639 66 138 248 . 440 31 316 574 67 248 263 12 113 201 411 . 629 47 617 42 44 Core Remaining (%) 62 | 100 . 33 . . . 47 . . . 34 . . . . . 57 . . . 62 . . . 89 . . . 89 . 96 . . . . . 14 . . . . Volleys Fired 2540 | . 48 8 134 9 . 17 33 103 61 111 13 81 8 104 . 57 8 112 66 115 100 159 . 65 22 77 89 53 71 119 11 68 25 121 149 98 24 114 44 43 Largest 2 | . 2 2 2 2 . 2 2 2 2 2 1 2 1 1 . 1 1 1 1 1 1 1 . 1 1 1 1 1 1 2 1 1 1 1 2 1 1 2 1 2 Hottest 152 | . 136 136 136 136 . 101 136 136 101 80 40 80 40 40 . 40 40 40 40 58 58 58 . 58 58 58 58 58 60 120 58 94 58 60 152 70 70 140 70 140 Shots Fired 2974 | . 93 16 257 17 . 26 66 127 119 168 13 88 8 107 . 57 8 113 66 117 100 161 . 69 22 77 94 54 72 120 11 70 26 132 163 93 24 122 45 53 Gun 202 | . 85 . . . . . . 9 22 . . . . . . . . . . . . . . . . . . . . . . . . . 25 5 11 38 . 7 Cannon 2131 | . 8 16 257 16 . 18 66 78 97 150 7 62 5 81 . 29 6 85 27 101 60 83 . 54 12 55 75 47 52 76 5 63 20 102 119 54 9 64 35 37 Launcher 103 | . . . . 1 . 8 . 40 . 17 . 3 . . . . . . . . . 6 . 4 . . . . 7 2 . . . 4 7 . . . 1 3 Special 538 | . . . . . . . . . . 1 6 23 3 26 . 28 2 28 39 16 40 72 . 11 10 22 19 7 13 42 6 7 6 26 12 34 4 20 9 6 Kinetic 1751 | . . . . . . 9 . 18 91 150 7 62 5 81 . 29 6 85 27 101 60 83 . 54 12 55 75 47 52 76 5 57 20 102 122 59 20 102 35 44 Thermal 439 | . 8 16 257 16 . 9 66 60 6 . . . . . . . . . . . . . . . . . . . . . . . . . . . . . . 1 Explosive 71 | . . . . 1 . 8 . 21 . 8 . . . . . . . . . . . 6 . 4 . . . . 7 2 . . . 4 7 . . . 1 2 Electromagnetic 175 | . 85 . . . . . . 28 22 9 . 3 . . . . . . . . . . . . . . . . . . . 6 . . 22 . . . . . Robot Hit Streak 39 | . 14 4 14 6 . 6 9 9 12 10 10 16 3 8 . 8 1 9 8 14 21 19 . 13 4 23 11 6 10 10 13 8 5 8 19 20 11 39 9 9 Robot Miss Streak 7 | . 5 2 6 2 . 3 4 7 4 3 2 2 3 3 . 3 4 5 4 4 3 3 . 2 2 3 5 2 2 6 2 6 2 7 5 3 2 3 4 2 Penetration Max 2 | . . . . . . . . . . . . . . 1 . . . 1 . . . . . . . . . . . . . . . . . 1 1 2 1 1 Secondary Targets 3 | . 1 . . . . . . . 2 . . . . . . . . . . . . . . . . . . . . . . . . . . . . . . . Max Gunslinging Chain 1 | . 1 . . . . . . . 1 . . . . . . . . . . . . . . . . . . . . . . . . . . . . . . . Shots Hit Robots 1705 | . 68 11 158 11 . 11 35 50 78 84 11 56 4 50 . 32 2 60 35 67 73 94 . 29 11 50 50 27 48 67 8 21 10 70 95 54 20 96 26 33 Core Hits 683 | . 37 5 53 6 . 16 14 46 38 45 2 18 . 11 . 11 . 16 5 16 18 25 . 16 6 9 25 6 27 20 . 7 3 24 47 15 9 36 12 39 Critical Kills 12 | . . . 2 . . . 1 . . . . . . . . . . . . . . . . . . . . . . . . . . . 3 3 1 1 1 . Critical Parts Destroyed 24 | . . . . . . . . . . . . . . . . . . . . . . . . . . . . . . . . . . . 2 3 2 12 2 3 Critical Strikes 136 | . . . 2 . . . 1 . 6 16 1 7 . 4 . 4 . 9 2 7 13 4 . . 1 3 4 3 3 1 . . . 8 6 6 3 14 4 4 Meltdown 3 | . . . 2 . . . 1 . . . . . . . . . . . . . . . . . . . . . . . . . . . . . . . . . Destroy 36 | . . . . . . . . . . . . . . . . . . . . . . . . . . . . . . . . . . . 5 6 3 14 4 4 Blast 97 | . . . . . . . . . 6 16 1 7 . 4 . 4 . 9 2 7 13 4 . . 1 3 4 3 3 1 . . . 8 1 . . . . . Melee Attacks 8 | . . . . . . . . . . 8 . . . . . . . . . . . . . . . . . . . . . . . . . . . . . . Impact 8 | . . . . . . . . . . 8 . . . . . . . . . . . . . . . . . . . . . . . . . . . . . . Slashing . | . . . . . . . . . . . . . . . . . . . . . . . . . . . . . . . . . . . . . . . . . Piercing . | . . . . . . . . . . . . . . . . . . . . . . . . . . . . . . . . . . . . . . . . . Sneak Attacks . | . . . . . . . . . . . . . . . . . . . . . . . . . . . . . . . . . . . . . . . . . Combat Hostiles . | . . . . . . . . . . . . . . . . . . . . . . . . . . . . . . . . . . . . . . . . . Follow-up Attacks . | . . . . . . . . . . . . . . . . . . . . . . . . . . . . . . . . . . . . . . . . . Damage Inflicted 86115 | 4 1376 227 3352 398 . 841 960 2475 2135 3253 146 1041 29 947 . 604 . 1282 487 2459 2087 2220 . 1760 934 1309 3652 1094 3797 2192 111 805 356 3342 4474 2284 978 4031 1672 27001 Guns 3511 | . 876 . . . . . . 18 298 . . . . . . . . . . . . . . . . . . . . . . . . . 646 132 427 864 . 250 Cannons 43864 | . 121 227 3348 225 . 250 960 585 1677 2346 146 908 29 947 . 412 . 1282 487 2459 1953 1792 . 971 183 1309 1557 1094 1274 1658 111 805 356 2846 2329 2152 551 3167 1672 1675 Explosions 38676 | . 359 . . 173 . 591 . 1872 160 871 . 133 . . . 192 . . . . 134 428 . 789 751 . 2095 . 2523 534 . . . 496 1499 . . . . 25076 Melee 36 | . . . . . . . . . . 36 . . . . . . . . . . . . . . . . . . . . . . . . . . . . . . Ramming 28 | 4 20 . 4 . . . . . . . . . . . . . . . . . . . . . . . . . . . . . . . . . . . . . Kinetic 40218 | . . . . . . 169 . 112 1596 2346 146 908 29 947 . 412 . 1282 487 2459 1953 1792 . 971 183 1309 1557 1094 1274 1658 111 688 356 2846 2643 2284 978 4031 1672 1925 Thermal 33317 | . 480 227 3348 225 . 81 960 473 140 . . . . . . . . . . . . . . . 751 . 1556 . . . . . . . . . . . . 25076 Explosive 9776 | . . . . 173 . 591 . 1235 101 542 . . . . . 192 . . . . 134 428 . 789 . . 539 . 2523 534 . . . 496 1499 . . . . . Electromagnetic 2740 | . 876 . . . . . . 655 298 329 . 133 . . . . . . . . . . . . . . . . . . . 117 . . 332 . . . . . Impact 36 | . . . . . . . . . . 36 . . . . . . . . . . . . . . . . . . . . . . . . . . . . . . Slashing . | . . . . . . . . . . . . . . . . . . . . . . . . . . . . . . . . . . . . . . . . . Piercing . | . . . . . . . . . . . . . . . . . . . . . . . . . . . . . . . . . . . . . . . . . Highest Corruption 31 | . . . . . . . . 2 2 4 . . . 1 1 2 3 5 5 6 . 3 3 4 . 2 3 4 2 4 1 4 4 13 24 31 . 2 2 10 Average Corruption 5 | . . . . . . . . 1 2 3 . . . 1 1 1 2 3 5 5 . 2 3 3 . 1 2 3 1 2 1 2 4 10 17 29 . 1 2 2 Corruption Purged . | . . . . . . . . . . . . . . . . . . . . . . . . . . . . . . . . . . . . . . . . . Corruption Blocked . | . . . . . . . . . . . . . . . . . . . . . . . . . . . . . . . . . . . . . . . . . Effects 787 | . . . . . . . . 1 23 32 . . . 18 1 11 3 43 55 40 . 26 . 35 . 6 14 27 8 40 3 20 21 124 93 97 . 8 21 17 Message Errors 195 | . . . . . . . . . 6 14 . . . 1 . 4 1 12 13 6 . 6 . 7 . 1 3 5 1 8 . 1 7 31 21 32 . 4 5 6 Matter Fused 181 | . . . . . . . . 1 7 5 . . . 4 1 2 1 7 15 13 . 5 . 7 . 2 . 5 3 10 1 6 4 33 20 18 . 2 4 5 Heat Flow Errors 92 | . . . . . . . . . 2 2 . . . 3 . . . 8 6 11 . 3 . 6 . . 1 . 2 4 1 4 3 17 7 8 . 2 2 . Energy Discharges 79 | . . . . . . . . . 5 2 . . . 3 . 1 . 3 13 1 . 2 . 3 . . 1 4 1 8 . 2 3 10 9 7 . . 1 . Parts Rejected 10 | . . . . . . . . . . 1 . . . . . . . . . . . . . 1 . . . 1 . 2 1 . . 2 . 1 . . . 1 Parts Fused 14 | . . . . . . . . . . 1 . . . . . . . 3 2 . . 2 . . . . . 2 . 1 . . . 1 . . . . 1 1 Data Loss (minor) 96 | . . . . . . . . . . 4 . . . 3 . 4 1 4 4 6 . 3 . 4 . 1 2 5 . 5 . 4 1 12 14 13 . . 4 2 Data Loss (major) 29 | . . . . . . . . . . 2 . . . . . . . 1 . 1 . 3 . . . 2 1 1 . . . 1 2 4 5 4 . . 2 . Misfires 47 | . . . . . . . . . 1 . . . . 3 . . . 1 . 2 . 2 . 4 . . 5 1 1 1 . 2 1 12 4 4 . . 1 2 Alerts 19 | . . . . . . . . . . . . . . 1 . . . 4 2 . . . . 3 . . 1 3 . . . . . 1 2 1 . . 1 . Misdirections 4 | . . . . . . . . . . . . . . . . . . . . . . . . . . . . . . . . . . . 4 . . . . . Weapon Failures 21 | . . . . . . . . . 2 1 . . . . . . . . . . . . . . . . . . . 1 . . . 1 7 9 . . . . Overload Shots . | . . . . . . . . . . . . . . . . . . . . . . . . . . . . . . . . . . . . . . . . . Overflow Damage 4589 | . 18 . 22 . . 24 4 60 60 173 . 4 10 32 . 3 . 70 . 78 133 66 . 35 200 128 340 82 256 53 49 58 6 135 63 50 5 119 96 2157 Projectiles 1474 | . . . 22 . . . 4 17 37 140 . 4 10 32 . 3 . 70 . 78 65 66 . 2 . 128 25 82 91 53 49 58 6 104 12 50 5 119 96 46 Explosions 3082 | . 18 . . . . 24 . 43 23 . . . . . . . . . . . 68 . . 33 200 . 315 . 165 . . . . 31 51 . . . . 2111 Melee 33 | . . . . . . . . . . 33 . . . . . . . . . . . . . . . . . . . . . . . . . . . . . . Knockbacks 209 | . . . . . . 4 . 1 12 20 2 10 . 7 . 2 . 2 2 12 12 9 . 5 . 7 9 5 2 10 1 5 1 23 20 4 . 9 3 10 Impact . | . . . . . . . . . . . . . . . . . . . . . . . . . . . . . . . . . . . . . . . . . Kinetic 192 | . . . . . . 4 . 1 12 18 2 9 . 7 . 2 . 2 2 12 10 7 . 4 . 7 9 5 2 8 1 3 1 20 20 4 . 9 2 9 Secondary 17 | . . . . . . . . . . 2 . 1 . . . . . . . . 2 2 . 1 . . . . . 2 . 2 . 3 . . . . 1 1 Self-Inflicted Damage 594 | . . . . . . 61 . 184 78 39 . . . . . . . . . . . 26 . 45 . . 161 . . . . . . . . . . . . . Shots 17 | . . . . . . 2 . 8 1 1 . . . . . . . . . . . 1 . 1 . . 3 . . . . . . . . . . . . . Rammed 8 | 2 4 . 2 . . . . . . . . . . . . . . . . . . . . . . . . . . . . . . . . . . . . . Targets Rammed 8 | 2 4 . 2 . . . . . . . . . . . . . . . . . . . . . . . . . . . . . . . . . . . . . Kicked . | . . . . . . . . . . . . . . . . . . . . . . . . . . . . . . . . . . . . . . . . . Crushed . | . . . . . . . . . . . . . . . . . . . . . . . . . . . . . . . . . . . . . . . . . Highest Temperature 354 | . 245 220 200 4 . 36 13 4 253 104 . 7 . 248 . 9 5 275 266 309 111 338 . 268 24 176 166 51 267 354 252 264 285 213 269 228 87 300 245 17 Average Temperature 66 | . 60 97 89 1 . 22 7 4 48 20 . 7 . 54 . 9 3 107 101 113 27 64 . 50 10 42 35 25 66 87 88 62 84 81 67 68 44 76 57 9 Received Heat Transfer 4928 | . 183 18 270 33 . 90 144 423 360 306 18 159 6 210 . 96 9 123 48 536 98 118 . 41 . 51 48 26 142 53 . 6 87 84 995 65 4 16 . 62 Effects 3 | . . . . . . . . . . . . . . . . . . . . 1 . . . 1 . . . . . . . . . . . . . 1 . . Interference 2 | . . . . . . . . . . . . . . . . . . . . 1 . . . 1 . . . . . . . . . . . . . . . . Damage (minor) 1 | . . . . . . . . . . . . . . . . . . . . . . . . . . . . . . . . . . . . . . 1 . . Siege Activations . | . . . . . . . . . . . . . . . . . . . . . . . . . . . . . . . . . . . . . . . . . Martial Activations . | . . . . . . . . . . . . . . . . . . . . . . . . . . . . . . . . . . . . . . . . . Shielding Activations . | . . . . . . . . . . . . . . . . . . . . . . . . . . . . . . . . . . . . . . . . . Robots Disrupted . | . . . . . . . . . . . . . . . . . . . . . . . . . . . . . . . . . . . . . . . . . Combat Hostiles . | . . . . . . . . . . . . . . . . . . . . . . . . . . . . . . . . . . . . . . . . . Robots Corrupted 6 | . . . . . . . . 2 . 3 . . . . . . . . . . . . . . . . . . . . . . . . 1 . . . . . Combat Hostiles 4 | . . . . . . . . 2 . 1 . . . . . . . . . . . . . . . . . . . . . . . . 1 . . . . . Parts Fried 13 | . 1 . . . . . . 8 . . . . . . . . . . . . . . . . . . . . . . . 1 . . 3 . . . . . Impact Corruptions 3 | . . . . . . . . . . 1 . . . . . . . . . . 1 . . . . . . . . . . . . 1 . . . . . . Robots Melted 4 | . . . 2 . . . 1 . . . . . . . . . . . . . . . . . . . 1 . . . . . . . . . . . . . Combat Hostiles 4 | . . . 2 . . . 1 . . . . . . . . . . . . . . . . . . . 1 . . . . . . . . . . . . . Parts Melted 14 | . . . 7 . . . 3 2 . . . . . . . . . . . . . . . . 1 . . . . . . 1 . . . . . . . . Heat Transferred 12588 | . 672 407 6031 407 . 148 1517 814 198 . . . . . . . . . . . . . . . 400 . 1124 . . . . . . . . . . . . 870 Parts Sabotaged . | . . . . . . . . . . . . . . . . . . . . . . . . . . . . . . . . . . . . . . . . . Parts Stolen . | . . . . . . . . . . . . . . . . . . . . . . . . . . . . . . . . . . . . . . . . . Parts Stripped . | . . . . . . . . . . . . . . . . . . . . . . . . . . . . . . . . . . . . . . . . . Power Chain Reactions 7 | . 6 . . . . . . . 1 . . . . . . . . . . . . . . . . . . . . . . . . . . . . . . . Alert | -11 -10 -10 -9 -9 -9 -8 -8 -8 -8 -8 -7 -7 -7 -7 -7 -7 -6 -6 -6 -6 -5 -5 -5 -5 -4 -4 -4 -4 -3 -3 -2 -2 -2 -2 -2 -2 -1 -1 -1 -1 ------- Run | Yrd Mat Min Mat Min Exi Min Mat Gar Mat Gar Fac Gar Fac Gar Fac Gar Fac Gar Fac Gar Fac Gar Fac Gar Fac Gar Fac Gar Res Gar Res Gar Res Qua Frg Gar Acc Gar Acc Com Maximum Alert Level 5 | . . . 2 1 . 1 . 3 2 4 2 3 2 4 3 4 2 4 3 2 2 4 2 5 4 4 4 4 2 3 2 1 . . . 2 1 1 . 4 Low Security (%) 41 | 100 100 100 52 . . 74 100 13 13 9 . . . . . . . . 23 69 25 8 . . . . . . 29 50 . 45 100 100 100 17 66 85 100 98 Level 1 15 | . . . 15 100 . 25 . 10 . 24 31 5 . 3 . . . 1 22 28 72 11 . . . . . . 52 17 89 54 . . . 69 33 14 . . Level 2 19 | . . . 32 . . . . 45 86 26 68 47 100 21 . 7 100 39 51 1 2 21 100 10 . 31 32 . 18 26 10 . . . . 12 . . . . Level 3 16 | . . . . . . . . 31 . 33 . 47 . 35 100 58 . 53 2 . . 24 . 43 92 48 44 72 . 4 . . . . . . . . . . Level 4 7 | . . . . . . . . . . 5 . . . 40 . 34 . 5 . . . 34 . 40 7 20 22 27 . . . . . . . . . . . 1 Level 5 . | . . . . . . . . . . . . . . . . . . . . . . . . 5 . . . . . . . . . . . . . . . . High Security . | . . . . . . . . . . . . . . . . . . . . . . . . . . . . . . . . . . . . . . . . . Max Security . | . . . . . . . . . . . . . . . . . . . . . . . . . . . . . . . . . . . . . . . . . Peak Influence 1600 | . 118 30 640 320 . 232 156 1003 666 1150 603 1053 552 1440 816 1315 690 1119 731 407 413 1282 672 1600 1194 1204 1315 1138 639 734 412 331 186 141 102 457 273 279 167 42 Initial 905 | . . 18 7 243 . . 60 96 488 . 603 223 552 330 756 536 690 382 587 63 213 172 672 456 840 591 632 905 639 40 412 200 186 . 71 61 273 . 167 32 Average 420 | . 55 5 271 268 . 119 65 559 449 581 454 709 514 941 789 988 621 766 390 185 250 777 662 1120 895 891 884 1062 289 302 347 208 45 29 34 301 131 113 76 6 Influence Increases 25548 | . 571 80 1289 127 . 321 308 977 616 1170 14 940 10 1160 60 969 6 937 1112 644 888 1270 . 1384 646 823 1315 333 429 974 45 501 76 755 680 656 96 880 544 1942 Destroy 0b10 Robot/C 8172 | . 340 60 740 100 . 200 160 440 320 740 . 300 . 360 20 255 . 255 345 210 315 450 . 435 150 165 192 48 72 180 . 84 . 168 240 132 24 156 120 396 Destroy 0b10 Robot/NC 446 | . 30 . 85 . . 10 10 . 55 10 5 10 5 . . . . . 40 . 36 4 . . 8 . 51 . 18 . 3 . 9 15 6 . 9 9 15 3 Destroy Leader 1116 | . 90 20 210 20 . 30 42 20 106 40 2 30 2 20 10 18 . 24 40 32 84 8 . 32 16 8 34 6 6 12 2 18 2 6 26 18 6 18 22 36 Allied During Kill 3913 | . . . . . . . . . . . . 28 2 214 30 272 . 261 364 103 176 238 . 467 174 171 277 40 96 180 5 102 11 147 93 53 39 183 157 30 Successful Hack 340 | . 18 . 19 . . 10 5 40 13 28 5 7 . 14 . 44 . 11 9 11 . . . 11 . . 8 18 . 9 . 18 . 17 . 10 . 15 . . Select Force Hacks 120 | . 30 . 60 . . . 30 . . . . . . . . . . . . . . . . . . . . . . . . . . . . . . . . . Disable Machine 1356 | . 15 . 75 . . 15 . 30 60 15 . . . . . . . 24 180 . 72 24 . 48 168 . 261 18 27 18 18 9 18 108 90 9 . 18 18 18 Anti-Garrison Action 4577 | . . . . . . . . 200 . 200 . 500 . 450 . 263 . 264 113 227 113 302 . 189 . 286 90 120 . 420 . 180 . . . 300 . 360 . . Destroy Structure 4959 | . 18 . 25 7 . 56 16 157 62 122 2 65 1 102 . 93 6 62 21 61 80 220 . 178 130 145 402 74 210 155 8 90 36 294 216 125 18 103 212 1387 Partial Spotted 27 | . . . 15 . . . . . . . . . . . . . . . . . . . . 12 . . . . . . . . . . . . . . . . Lose Combat Pursuer 522 | . 30 . 60 . . . 45 90 . 15 . . . . . 24 . 36 . . 12 24 . 12 . 48 . 9 . . 9 . . . 9 9 . 18 . 72 Influence Decreases 23966 | . 523 108 684 472 280 165 316 122 1619 20 845 206 591 192 734 420 775 364 2141 327 1048 235 630 436 1401 464 1226 488 1513 294 512 437 407 628 725 281 553 601 773 410 Entered New Map 9403 | . . 30 13 382 280 . 96 52 515 . 547 96 501 142 684 230 625 164 532 27 194 75 610 196 760 254 572 388 499 14 322 67 145 . 56 21 184 . 112 18 Time Decay 7008 | . 503 58 621 80 . 145 220 . 454 . 278 . 90 . 50 . 150 . 664 . 534 . 20 . 206 . 404 . 474 . 190 . 233 333 398 . 189 . 422 292 Lost Part 522 | . 20 20 50 10 . 20 . 70 50 . . 10 . 10 . . . . 20 20 30 20 . . . . . . 10 . . 10 . 14 60 40 . 28 10 . Lost Ally 5183 | . . . . . . . . . . 20 20 100 . 40 . 190 . 200 250 280 290 140 . 240 160 210 250 100 380 280 . 360 29 281 211 220 180 423 229 100 Purge Threat 1850 | . . . . . . . . . 600 . . . . . . . . . 675 . . . . . 275 . . . 150 . . . . . . . . 150 . . Squads Dispatched 110 | . 5 . 4 . . 1 1 . 1 . 3 . . . . . . . 11 . 17 . . . 4 . 10 . 9 . 2 . 2 19 7 . 3 . 4 7 Investigation 12 | . 2 . 3 . . 1 1 . 1 . . . . . . . . . . . 2 . . . . . . . 1 . . . . 1 . . . . . . Extermination 27 | . . . . . . . . . . . 1 . . . . . . . 3 . 3 . . . 1 . 1 . 1 . . . 2 7 3 . . . 2 3 Reinforcement 43 | . 3 . 1 . . . . . . . 1 . . . . . . . 5 . 7 . . . 2 . 4 . 3 . 2 . . 9 1 . . . 2 3 Assault 13 | . . . . . . . . . . . 1 . . . . . . . 3 . 2 . . . . . 4 . 2 . . . . . . . . . . 1 Garrison 15 | . . . . . . . . . . . . . . . . . . . . . 3 . . . 1 . 1 . 2 . . . . 2 3 . 3 . . . Intercept . | . . . . . . . . . . . . . . . . . . . . . . . . . . . . . . . . . . . . . . . . . Searches Triggered . | . . . . . . . . . . . . . . . . . . . . . . . . . . . . . . . . . . . . . . . . . Unchained Authorized 1 | . . . . . . . . . . . . . . . . . . . . . . . . . . . . . 1 . . . . . . . . . . . Construction Impeded 6 | . . . . . . . . . . . . . . . . . . . 1 . 3 . . . 1 . 1 . . . . . . . . . . . . . Haulers Reinforced 8 | . . . . . . . . . . . . . . . . . . . 1 . 1 . . . . . 1 . . . 1 . . 2 . . . . 2 . Active Scanning Responses . | . . . . . . . . . . . . . . . . . . . . . . . . . . . . . . . . . . . . . . . . . Cargo Convoy Interrupts . | . . . . . . . . . . . . . . . . . . . . . . . . . . . . . . . . . . . . . . . . . Alert ID Control Effect 476 | . . . . . . . . . . . 2 3 2 14 . 19 2 15 21 14 12 18 . 9 14 17 33 23 28 21 4 14 9 60 30 15 14 22 11 30 Stealth | -11 -10 -10 -9 -9 -9 -8 -8 -8 -8 -8 -7 -7 -7 -7 -7 -7 -6 -6 -6 -6 -5 -5 -5 -5 -4 -4 -4 -4 -3 -3 -2 -2 -2 -2 -2 -2 -1 -1 -1 -1 --------- Run | Yrd Mat Min Mat Min Exi Min Mat Gar Mat Gar Fac Gar Fac Gar Fac Gar Fac Gar Fac Gar Fac Gar Fac Gar Fac Gar Fac Gar Res Gar Res Gar Res Qua Frg Gar Acc Gar Acc Com Distress Signals 24 | . . . 3 . . . 3 . 2 . 1 1 . . . . . . 1 . . 1 . . 2 . 3 . 2 . . . . . 2 . 2 . . 1 Communications Jammed 484 | . . . . . . . . . . . . . . . . . . . . . . . . . . . 69 . 8 . 2 . 29 44 82 . . . 146 104 Distress Signals 482 | . . . . . . . . . . . . . . . . . . . . . . . . . . . 68 . 8 . 2 . 29 44 81 . . . 146 104 Times Spotted 1117 | . 27 4 53 5 . 10 18 24 21 35 9 20 1 40 . 40 6 36 43 39 40 53 . 47 23 38 50 21 65 54 7 24 11 58 48 33 15 36 20 43 Peak Tracking Total 19 | . 3 2 5 3 . 4 4 5 3 6 4 5 1 5 . 7 4 7 6 6 6 6 . 8 7 7 7 4 10 8 2 5 2 5 4 4 3 5 3 19 Tactical Retreats 29 | . 1 . 3 . . . 2 5 . 1 . . . . . 1 . 1 . . 1 1 . 1 . 1 . 1 2 . 1 . . . 1 1 . 2 . 3 Traps | -11 -10 -10 -9 -9 -9 -8 -8 -8 -8 -8 -7 -7 -7 -7 -7 -7 -6 -6 -6 -6 -5 -5 -5 -5 -4 -4 -4 -4 -3 -3 -2 -2 -2 -2 -2 -2 -1 -1 -1 -1 ------- Run | Yrd Mat Min Mat Min Exi Min Mat Gar Mat Gar Fac Gar Fac Gar Fac Gar Fac Gar Fac Gar Fac Gar Fac Gar Fac Gar Fac Gar Res Gar Res Gar Res Qua Frg Gar Acc Gar Acc Com Traps Triggered 111 | . 4 . . . . . . 12 2 6 . 10 . 11 . 2 . 5 4 3 . 5 2 12 . 4 . 2 . 7 . 5 1 . 1 8 . 4 1 . Indirectly 7 | . . . . . . . . 3 . 1 . 2 . . . . . . 1 . . . . . . . . . . . . . . . . . . . . . Trap Hack Attempts . | . . . . . . . . . . . . . . . . . . . . . . . . . . . . . . . . . . . . . . . . . Triggered . | . . . . . . . . . . . . . . . . . . . . . . . . . . . . . . . . . . . . . . . . . Disarmed . | . . . . . . . . . . . . . . . . . . . . . . . . . . . . . . . . . . . . . . . . . Reprogrammed . | . . . . . . . . . . . . . . . . . . . . . . . . . . . . . . . . . . . . . . . . . Reused . | . . . . . . . . . . . . . . . . . . . . . . . . . . . . . . . . . . . . . . . . . Traps Extracted . | . . . . . . . . . . . . . . . . . . . . . . . . . . . . . . . . . . . . . . . . . Installed . | . . . . . . . . . . . . . . . . . . . . . . . . . . . . . . . . . . . . . . . . . Triggered . | . . . . . . . . . . . . . . . . . . . . . . . . . . . . . . . . . . . . . . . . . Machines | -11 -10 -10 -9 -9 -9 -8 -8 -8 -8 -8 -7 -7 -7 -7 -7 -7 -6 -6 -6 -6 -5 -5 -5 -5 -4 -4 -4 -4 -3 -3 -2 -2 -2 -2 -2 -2 -1 -1 -1 -1 ---------- Run | Yrd Mat Min Mat Min Exi Min Mat Gar Mat Gar Fac Gar Fac Gar Fac Gar Fac Gar Fac Gar Fac Gar Fac Gar Fac Gar Fac Gar Res Gar Res Gar Res Qua Frg Gar Acc Gar Acc Com Machines Disabled 201 | . 1 . 5 . . 1 . 4 4 3 . 5 . 4 . 5 . 5 16 5 7 7 . 8 14 5 30 6 3 7 2 4 3 13 16 8 . 6 2 2 Max in Single Turn 7 | . 1 . 1 . . 1 . 1 2 1 . 1 . 1 . 2 . 1 7 1 2 1 . 1 4 1 7 1 1 1 1 1 1 1 2 1 . 1 1 1 Garrison Access 6 | . . . . . . . . . . . . . . . . . . . 1 . 1 . . . . . 2 . 1 . . . . 1 . . . . . . Garrison Relay 54 | . . . . . . . . 2 . 2 . 5 . 4 . 2 . 2 . 4 . 3 . 3 . 5 . 4 . 5 . 3 . . . 6 . 4 . . Phase Generator 1 | . . . . . . . . . . . . . . . . 1 . . . . . . . . . . . . . . . . . . . . . . . . Energy Cycler 1 | . . . . . . . . . . . . . . . . . . . . . . . . . . . . . . . . . . . . . . . 1 . Machines Repaired . | . . . . . . . . . . . . . . . . . . . . . . . . . . . . . . . . . . . . . . . . . Machines Dismantled . | . . . . . . . . . . . . . . . . . . . . . . . . . . . . . . . . . . . . . . . . . Machines Sabotaged . | . . . . . . . . . . . . . . . . . . . . . . . . . . . . . . . . . . . . . . . . . Overloaded Fab Kills . | . . . . . . . . . . . . . . . . . . . . . . . . . . . . . . . . . . . . . . . . . Hacking | -11 -10 -10 -9 -9 -9 -8 -8 -8 -8 -8 -7 -7 -7 -7 -7 -7 -6 -6 -6 -6 -5 -5 -5 -5 -4 -4 -4 -4 -3 -3 -2 -2 -2 -2 -2 -2 -1 -1 -1 -1 --------- Run | Yrd Mat Min Mat Min Exi Min Mat Gar Mat Gar Fac Gar Fac Gar Fac Gar Fac Gar Fac Gar Fac Gar Fac Gar Fac Gar Fac Gar Res Gar Res Gar Res Qua Frg Gar Acc Gar Acc Com Machines Accessed 108 | . 4 . 12 . 1 2 4 3 10 2 3 2 1 3 1 3 1 1 9 1 3 2 1 1 1 4 3 2 3 3 1 3 2 7 2 2 1 3 . 1 Terminals 73 | . 3 . 9 . . 2 2 3 7 2 1 2 . 3 . 3 . 1 3 1 . 2 . 1 . 4 1 2 1 3 . 3 2 5 1 2 . 3 . 1 Fabricators 5 | . . . . . . . . . . . 1 . . . . . . . 2 . 2 . . . . . . . . . . . . . . . . . . . Repair Stations 1 | . . . . . . . . . 1 . . . . . . . . . . . . . . . . . . . . . . . . . . . . . . . Recycling Units 5 | . 1 . 2 . . . 1 . . . . . . . . . . . 1 . . . . . . . . . . . . . . . . . . . . . Scanalyzers 7 | . . . 1 . . . . . 1 . . . . . . . . . 2 . . . . . . . 1 . 1 . . . . 1 . . . . . . Garrison Access 16 | . . . . . . . 1 . 1 . 1 . 1 . 1 . 1 . 1 . 1 . 1 . 1 . 1 . 1 . 1 . . 1 1 . 1 . . . Total Hacks 216 | . 10 . 35 . 1 5 10 5 25 3 4 4 1 6 1 6 1 3 18 2 7 4 1 2 1 6 4 2 6 7 1 5 3 11 2 6 1 6 . 1 Successful 112 | . 7 . 18 . 1 2 4 3 16 2 4 2 1 2 1 3 1 1 9 1 4 2 1 1 1 1 2 2 3 2 1 2 . 5 2 1 1 2 . 1 Failed 102 | . 3 . 16 . . 3 6 2 8 1 . 2 . 4 . 3 . 2 9 1 3 2 . 1 . 5 2 . 3 5 . 3 3 6 . 5 . 4 . . Catastrophic 24 | . . . 1 . . 1 . 1 1 . . . . 2 . . . 1 2 . . . . 1 . 4 1 . . 3 . 3 1 1 . 1 . . . . Database Lockouts 2 | . . . 1 . . . . . 1 . . . . . . . . . . . . . . . . . . . . . . . . . . . . . . . Manual 79 | . 8 . 22 . 1 4 3 3 17 . 1 . . . . 3 . . . . 4 2 . 1 . 2 1 . 3 1 . . 3 . . . . . . . Terminals 156 | . 8 . 27 . . 5 5 5 19 3 2 4 . 6 . 6 . 3 6 2 . 4 . 2 . 6 1 2 3 7 . 5 3 8 1 6 . 6 . 1 Fabricators 10 | . . . . . . . . . . . 1 . . . . . . . 3 . 6 . . . . . . . . . . . . . . . . . . . Repair Stations 1 | . . . . . . . . . 1 . . . . . . . . . . . . . . . . . . . . . . . . . . . . . . . Recycling Units 9 | . 2 . 5 . . . 1 . . . . . . . . . . . 1 . . . . . . . . . . . . . . . . . . . . . Scanalyzers 19 | . . . 3 . . . . . 3 . . . . . . . . . 7 . . . . . . . 2 . 2 . . . . 2 . . . . . . Garrison Access 20 | . . . . . . . 4 . 2 . 1 . 1 . 1 . 1 . 1 . 1 . 1 . 1 . 1 . 1 . 1 . . 1 1 . 1 . . . Terminal Hacks 51 | . 1 . 5 . 1 2 2 2 5 2 1 2 . 2 . 2 . 1 2 1 . 2 . 1 . 1 . 2 1 2 . 2 . 4 1 1 . 2 . 1 Prototype ID Bank 7 | . 1 . 1 . . 1 1 . 1 . 1 . . . . . . . . . . . . . . . . . . . . . . 1 . . . . . . Open Door 8 | . . . . . . . . . . . . 1 . 1 . . . . . . . 1 . . . 1 . . . 1 . . . 1 . . . 1 . 1 Branch Access Points 1 | . . . 1 . . . . . . . . . . . . . . . . . . . . . . . . . . . . . . . . . . . . . Emergency Access Points 11 | . . . . . . . . 1 . 1 . 1 . 1 . 1 . 1 . . . 1 . 1 . . . 1 . 1 . 1 . . . . . . . . Terminal Index 1 | . . . 1 . . . . . . . . . . . . . . . . . . . . . . . . . . . . . . . . . . . . . Alert Level 1 | . . . 1 . . . . . . . . . . . . . . . . . . . . . . . . . . . . . . . . . . . . . Unreport Threat 7 | . . . . . . . . . 4 . . . . . . . . . 2 . . . . . . . . . 1 . . . . . . . . . . . Locate Traps 1 | . . . . . . . 1 . . . . . . . . . . . . . . . . . . . . . . . . . . . . . . . . . Dispatch Records 2 | . . . . . . 1 . . . . . . . . . . . . . . . . . . . . . . . . . . . 1 . . . . . . Surveillance Status 1 | . . . . . . . . . . . . . . . . . . . . . . . . . . . . . . . . . . 1 . . . . . . Zone Layout 1 | . . . 1 . . . . . . . . . . . . . . . . . . . . . . . . . . . . . . . . . . . . . Garrison Registry 6 | . . . . . . . . 1 . 1 . . . . . 1 . . . 1 . . . . . . . 1 . . . 1 . . . . . . . . Patrol Navigation 1 | . . . . . . . . . . . . . . . . . . . . . . . . . . . . . . . . . . . . 1 . . . . Security Stations 1 | . . . . . . . . . . . . . . . . . . . . . . . . . . . . . . . . . . . . . . 1 . . Proto ID Catalog 2 | . . . . . 1 . . . . . . . . . . . . . . . . . . . . . . . . . . . . . 1 . . . . . Fabricator Hacks 4 | . . . . . . . . . . . 1 . . . . . . . 1 . 2 . . . . . . . . . . . . . . . . . . . Network Status 4 | . . . . . . . . . . . 1 . . . . . . . 1 . 2 . . . . . . . . . . . . . . . . . . . Repair Station Hacks . | . . . . . . . . . . . . . . . . . . . . . . . . . . . . . . . . . . . . . . . . . Recycling Unit Hacks 1 | . . . 1 . . . . . . . . . . . . . . . . . . . . . . . . . . . . . . . . . . . . . Retrieve Components 1 | . . . 1 . . . . . . . . . . . . . . . . . . . . . . . . . . . . . . . . . . . . . Scanalyzer 10 | . . . 2 . . . . . 2 . . . . . . . . . 5 . . . . . . . 1 . . . . . . . . . . . . . Retrieve Study 10 | . . . 2 . . . . . 2 . . . . . . . . . 5 . . . . . . . 1 . . . . . . . . . . . . . Garrison Access Hacks 17 | . . . . . . . 1 . 2 . 1 . 1 . 1 . 1 . 1 . 1 . 1 . 1 . 1 . 1 . 1 . . 1 1 . 1 . . . Unlock Access 15 | . . . . . . . 1 . 1 . 1 . 1 . 1 . 1 . 1 . 1 . 1 . 1 . 1 . 1 . 1 . . . 1 . 1 . . . Seal Access 1 | . . . . . . . . . . . . . . . . . . . . . . . . . . . . . . . . . . 1 . . . . . . Coupler Status 1 | . . . . . . . . . 1 . . . . . . . . . . . . . . . . . . . . . . . . . . . . . . . Unauthorized Hacks 29 | . 6 . 10 . . . 1 1 7 . 1 . . . . 1 . . . . 1 . . . . . . . 1 . . . . . . . . . . . Terminals 23 | . 5 . 8 . . . . 1 6 . 1 . . . . 1 . . . . . . . . . . . . 1 . . . . . . . . . . . Botnet 6 | . 1 . 1 . . . . 1 1 . . . . . . 1 . . . . . . . . . . . . 1 . . . . . . . . . . . Operators 2 | . 1 . 1 . . . . . . . . . . . . . . . . . . . . . . . . . . . . . . . . . . . . . Skim 15 | . 3 . 6 . . . . . 5 . 1 . . . . . . . . . . . . . . . . . . . . . . . . . . . . . Fabricators 1 | . . . . . . . . . . . . . . . . . . . . . 1 . . . . . . . . . . . . . . . . . . . Haulers 1 | . . . . . . . . . . . . . . . . . . . . . 1 . . . . . . . . . . . . . . . . . . . Repair Stations 1 | . . . . . . . . . 1 . . . . . . . . . . . . . . . . . . . . . . . . . . . . . . . Mechanics 1 | . . . . . . . . . 1 . . . . . . . . . . . . . . . . . . . . . . . . . . . . . . . Recycling Units 4 | . 1 . 2 . . . 1 . . . . . . . . . . . . . . . . . . . . . . . . . . . . . . . . . Tunnel 4 | . 1 . 2 . . . 1 . . . . . . . . . . . . . . . . . . . . . . . . . . . . . . . . . Scanalyzers . | . . . . . . . . . . . . . . . . . . . . . . . . . . . . . . . . . . . . . . . . . Garrison Access . | . . . . . . . . . . . . . . . . . . . . . . . . . . . . . . . . . . . . . . . . . Data Cores Recovered 2 | . . . 1 . . . . . . . . . . . . . . . . . . . . . . . . . . . . . . 1 . . . . . . Used . | . . . . . . . . . . . . . . . . . . . . . . . . . . . . . . . . . . . . . . . . . Hacking Detections 80 | . 4 . 8 . . 2 3 2 6 2 3 1 . 3 . 3 1 1 6 1 1 1 1 1 1 3 2 . 3 2 . 3 2 6 1 2 1 3 . 1 Full Trace Events 15 | . . . 1 . . 1 . . . . . 1 . 1 . 1 . 1 . . . 1 . . . 2 . . 1 1 . 1 . 1 . . . 2 . . Feedback Events 2 | . . . . . . . . . . . . . . . . . . . . . . 1 . . . 1 . . . . . . . . . . . . . . Corruption 2 | . . . . . . . . . . . . . . . . . . . . . . 1 . . . 1 . . . . . . . . . . . . . . Feedback Blocked . | . . . . . . . . . . . . . . . . . . . . . . . . . . . . . . . . . . . . . . . . . Robot Schematics Acquired 8 | . . . . . . . . . . . . . . . . . . . . . . . . . . . . . . . . . . 8 . . . . . . Robots Built . | . . . . . . . . . . . . . . . . . . . . . . . . . . . . . . . . . . . . . . . . . Authchips . | . . . . . . . . . . . . . . . . . . . . . . . . . . . . . . . . . . . . . . . . . Time . | . . . . . . . . . . . . . . . . . . . . . . . . . . . . . . . . . . . . . . . . . Total Robot Build Rating . | . . . . . . . . . . . . . . . . . . . . . . . . . . . . . . . . . . . . . . . . . Part Schematics Acquired 12 | . . . . . . . . . . . . . . . . . . . . . . . . . . . . . . . . . . 12 . . . . . . Parts Built . | . . . . . . . . . . . . . . . . . . . . . . . . . . . . . . . . . . . . . . . . . Authchips . | . . . . . . . . . . . . . . . . . . . . . . . . . . . . . . . . . . . . . . . . . Time . | . . . . . . . . . . . . . . . . . . . . . . . . . . . . . . . . . . . . . . . . . Total Part Build Rating . | . . . . . . . . . . . . . . . . . . . . . . . . . . . . . . . . . . . . . . . . . Part Studies Acquired 10 | . . . 2 . . . . . 2 . . . . . . . . . 5 . . . . . . . 1 . . . . . . . . . . . . . Parts Repaired . | . . . . . . . . . . . . . . . . . . . . . . . . . . . . . . . . . . . . . . . . . Time . | . . . . . . . . . . . . . . . . . . . . . . . . . . . . . . . . . . . . . . . . . Parts Recycled . | . . . . . . . . . . . . . . . . . . . . . . . . . . . . . . . . . . . . . . . . . Recycled Matter . | . . . . . . . . . . . . . . . . . . . . . . . . . . . . . . . . . . . . . . . . . Retrieved Matter . | . . . . . . . . . . . . . . . . . . . . . . . . . . . . . . . . . . . . . . . . . Retrieved Components 1 | . . . 1 . . . . . . . . . . . . . . . . . . . . . . . . . . . . . . . . . . . . . Parts Scanalyzed . | . . . . . . . . . . . . . . . . . . . . . . . . . . . . . . . . . . . . . . . . . Part Schematics Acquired . | . . . . . . . . . . . . . . . . . . . . . . . . . . . . . . . . . . . . . . . . . Parts Damaged . | . . . . . . . . . . . . . . . . . . . . . . . . . . . . . . . . . . . . . . . . . Bothacking | -11 -10 -10 -9 -9 -9 -8 -8 -8 -8 -8 -7 -7 -7 -7 -7 -7 -6 -6 -6 -6 -5 -5 -5 -5 -4 -4 -4 -4 -3 -3 -2 -2 -2 -2 -2 -2 -1 -1 -1 -1 ------------ Run | Yrd Mat Min Mat Min Exi Min Mat Gar Mat Gar Fac Gar Fac Gar Fac Gar Fac Gar Fac Gar Fac Gar Fac Gar Fac Gar Fac Gar Res Gar Res Gar Res Qua Frg Gar Acc Gar Acc Com Used RIF Installer 19 | . . . . . . . . 1 . 1 . 1 . 1 . 2 . 1 . 1 . 1 . 1 . 2 . 1 . 2 . 1 . . . 2 . 1 . . Hotswap 1 | . . . . . . . . . . . . . . 1 . . . . . . . . . . . . . . . . . . . . . . . . . . Command Fork 1 | . . . . . . . . . . . . . . . . . . . . . . . . 1 . . . . . . . . . . . . . . . . Threat Obfuscator 2 | . . . . . . . . . . . . . . . . 1 . . . . . . . . . 1 . . . . . . . . . . . . . . Signal Jammer 1 | . . . . . . . . . . . . . . . . . . . . . . . . . . 1 . . . . . . . . . . . . . . Zone Cloak 2 | . . . . . . . . . . . . 1 . . . . . . . 1 . . . . . . . . . . . . . . . . . . . . Robot Detection 1 | . . . . . . . . . . . . . . . . . . . . . . 1 . . . . . . . . . . . . . . . . . . Watcher Feeds 1 | . . . . . . . . . . . . . . . . . . . . . . . . . . . . . . . . . . . . . . 1 . . Patrol Navigation 1 | . . . . . . . . . . . . . . . . . . . . . . . . . . . . 1 . . . . . . . . . . . . Alert ID Control 1 | . . . . . . . . . . 1 . . . . . . . . . . . . . . . . . . . . . . . . . . . . . . Structural Interface 1 | . . . . . . . . . . . . . . . . . . . . . . . . . . . . . . . . . . . . 1 . . . . Program Shield 1 | . . . . . . . . . . . . . . . . . . . . . . . . . . . . . . . . 1 . . . . . . . . Autooverride 3 | . . . . . . . . . . . . . . . . . . 1 . . . . . . . . . . . 2 . . . . . . . . . . Autoassimilate 2 | . . . . . . . . . . . . . . . . 1 . . . . . . . . . . . . . . . . . . . 1 . . . . Robots Hacked 480 | . . . . . . . . . . 1 4 7 3 15 . 15 2 10 25 13 38 18 . 13 12 16 20 14 25 26 9 22 5 35 23 31 15 28 17 18 Non-combat 65 | . . . . . . . . . . . 2 . 3 . . 2 1 . 12 . 14 1 . . 2 2 4 . 2 . 3 . 2 5 2 1 . 1 4 2 Combat 415 | . . . . . . . . . . 1 2 7 . 15 . 13 1 10 13 13 24 17 . 13 10 14 16 14 23 26 6 22 3 30 21 30 15 27 13 16 Autooverrided 129 | . . . . . . . . . . . . . . . . . . . 5 1 9 1 . 1 3 4 2 5 8 4 1 8 . 14 16 12 8 10 8 9 Autoassimilated 117 | . . . . . . . . . . . . . . . . . . 1 4 3 7 1 . 4 5 4 4 4 9 6 4 13 1 8 3 9 6 9 5 7 Robot Hacks Applied 261 | . . . . . . . . . . 1 4 7 3 15 . 17 2 9 20 10 23 18 . 8 5 9 14 5 9 19 4 2 4 15 8 11 1 10 6 2 parse_system 19 | . . . . . . . . . . . 1 . . 1 . 2 . 1 1 . 1 3 . . 1 . . . . 1 . . . 1 4 . 1 . . 1 no_distress 2 | . . . . . . . . . . . . . . . . . . . . . 2 . . . . . . . . . . . . . . . . . . . find_chute 2 | . . . . . . . . . . . . . . . . . . . . . 2 . . . . . . . . . . . . . . . . . . . map_walls 2 | . . . . . . . . . . . . . . . . . . . 1 . 1 . . . . . . . . . . . . . . . . . . . drop_inventory 20 | . . . . . . . . . . . . . 1 . . . 1 . 4 . 4 . . . . . 2 . . . 1 . 1 2 . . . . 4 . recall_reinforcements 3 | . . . . . . . . . . . . . . . . . . . . . . . . . . . . . . . . . . 1 . . . . 2 . locate_stockpiles 1 | . . . . . . . . . . . . . . . . . . . . . 1 . . . . . . . . . . . . . . . . . . . find_recycling 1 | . . . . . . . . . . . . . . . . . . . . . 1 . . . . . . . . . . . . . . . . . . . ignore_parts 1 | . . . . . . . . . . . . . . . . . . . . . 1 . . . . . . . . . . . . . . . . . . . purge_threat 6 | . . . . . . . . . . . . . . . . . . . 3 . . . . . 2 . . . . . . . . . . . . 1 . . block_reporting 2 | . . . . . . . . . . . . . . . . . . . . . . . . . . . . . . . . . . 2 . . . . . . map_route 9 | . . . . . . . . . . . . . 1 . . . . . 3 . . . . . . . 1 . 1 . 1 . 1 . 1 . . . . . mark_security 1 | . . . . . . . . . . . . . 1 . . . . . . . . . . . . . . . . . . . . . . . . . . . disable_scanner 2 | . . . . . . . . . . . . . . . . . . . . . . . . . . . . . . . . . . 2 . . . . . . emergency_deploy 1 | . . . . . . . . . . . . . . 1 . . . . . . . . . . . . . . . . . . . . . . . . . . find_shortcuts 1 | . . . . . . . . . . . . . . . . 1 . . . . . . . . . . . . . . . . . . . . . . . . find_garrison 8 | . . . . . . . . . . . . . . . . . . . 1 . 1 . . . 1 . 3 . 2 . . . . . . . . . . . scatter_targeting 1 | . . . . . . . . . . . . . . . . 1 . . . . . . . . . . . . . . . . . . . . . . . . amplify_resonance 22 | . . . . . . . . . . . . 1 . 1 . 3 1 2 1 . . 3 . 2 . . 1 2 . 4 . . . . . 1 . . . . disable_weapons 1 | . . . . . . . . . . . . . . . . . . . . . . 1 . . . . . . . . . . . . . . . . . . overwrite_iff 10 | . . . . . . . . . . 1 1 . . . . 2 . . . 1 . . . . . . 1 . . 1 . . . 3 . . . . . . formatsys_low 19 | . . . . . . . . . . . 1 . . . . 2 . . 4 . 1 1 . . 1 1 1 . 1 1 1 . . 1 . 1 . 1 . 1 formatsys_high 121 | . . . . . . . . . . . 1 6 . 12 . 6 . 6 1 9 8 10 . 5 . 8 5 3 4 11 1 2 2 3 3 8 . 7 . . formatsys_deep 6 | . . . . . . . . . . . . . . . . . . . 1 . . . . 1 . . . . 1 1 . . . . . 1 . 1 . . Relay Couplers Released 230 | . . . . . . . . 9 . 8 . 20 . 15 . 9 . 8 2 16 1 12 . 10 . 20 3 17 3 20 . 14 . . . 26 . 17 . . Machine Destruction 227 | . . . . . . . . 9 . 8 . 20 . 15 . 9 . 8 2 16 1 12 . 10 . 20 3 17 3 20 . 14 . . . 23 . 17 . . Programmers 3 | . . . . . . . . . . . . . . . . . . . . . . . . . . . . . . . . . . . . 3 . . . . Attached 108 | . . . . . . . . 2 . 1 2 6 . 10 . 3 2 8 1 4 3 7 . 3 . 4 1 5 1 9 . 7 1 3 2 12 2 6 . 3 Fabnet Peak Effective % . | . . . . . . . . . . . . . . . . . . . . . . . . . . . . . . . . . . . . . . . . . Robots Rewired 49 | . . . . . . . . . . . . 3 . 3 . . . 6 . 1 . 19 . . . 5 . . . 6 . 1 . . . 5 . . . . Allies Hacked 25 | . . . . . . . . . . . . . . . . . . 2 . . 3 2 . . 1 2 1 . 1 4 2 . . 2 . . . 1 2 2 Hacks Repelled . | . . . . . . . . . . . . . . . . . . . . . . . . . . . . . . . . . . . . . . . . . Allies | -11 -10 -10 -9 -9 -9 -8 -8 -8 -8 -8 -7 -7 -7 -7 -7 -7 -6 -6 -6 -6 -5 -5 -5 -5 -4 -4 -4 -4 -3 -3 -2 -2 -2 -2 -2 -2 -1 -1 -1 -1 -------- Run | Yrd Mat Min Mat Min Exi Min Mat Gar Mat Gar Fac Gar Fac Gar Fac Gar Fac Gar Fac Gar Fac Gar Fac Gar Fac Gar Fac Gar Res Gar Res Gar Res Qua Frg Gar Acc Gar Acc Com Total Allies 482 | . . 2 . . . . . . . 1 3 10 . 16 . 14 . 15 18 14 25 32 . 16 9 23 13 12 24 30 11 23 3 29 20 39 14 34 15 17 Largest Group 35 | . . 2 . . . . . . . 1 2 8 6 17 17 18 17 18 23 11 8 24 24 28 27 23 22 13 16 20 28 35 31 31 17 19 23 30 31 25 Highest-Rated Group 2045 | . . 47 . . . . . . . 16 45 268 198 404 401 600 568 726 842 314 386 813 813 1069 1061 1219 1114 730 787 1151 1592 2016 1814 1810 1281 1143 1380 1828 2045 1847 Highest-Rated Ally 344 | . . 31 . . . . . . . 16 29 40 40 40 40 95 95 95 95 119 119 64 64 95 95 92 85 116 116 64 64 85 85 344 344 69 69 219 219 219 Total Orders 143 | . . . . . . . . . . . 2 6 1 12 . 3 2 1 18 3 2 1 . 1 2 11 2 1 1 5 1 6 2 15 4 1 1 10 1 28 STAY 60 | . . . . . . . . . . . . 3 . 5 . . . . 11 . . . . . . 5 . . . 1 . 2 . 5 2 . . 4 . 22 ROAM 1 | . . . . . . . . . . . . . . . . . . . . . . . . . . . . . . . . . . . 1 . . . . . FOLLOW 24 | . . . . . . . . . . . . 1 . 2 . . . . 4 . . . . . . 4 . . . . . 1 . 7 1 . . 3 . 1 AID 57 | . . . . . . . . . . . 1 2 1 5 . 3 2 1 3 3 2 1 . 1 2 2 2 1 1 4 1 3 2 3 . 1 1 3 1 5 EXPLORE 1 | . . . . . . . . . . . 1 . . . . . . . . . . . . . . . . . . . . . . . . . . . . . Ally Attacks 4085 | . . 1 . . . . . . . 3 7 44 15 91 3 119 23 102 222 141 185 170 . 174 136 173 300 153 230 159 47 149 81 359 226 101 63 270 118 220 Total Damage 129285 | . . 21 . . . . . . . 32 86 829 289 2346 47 2968 513 2890 6524 3507 4269 3421 . 4819 3427 5115 9349 4753 7274 5605 1341 5610 2809 12103 9644 4033 2018 9275 3962 10406 Kills 651 | . . . . . . . . . . . 2 5 3 27 1 27 2 24 52 19 28 29 . 29 23 24 44 24 39 24 5 14 11 64 33 15 14 25 14 30 Allies Corrupted 52 | . . . . . . . . . . . . . . . . . . 1 . 1 6 . . . 5 1 . . 3 2 . 2 1 12 3 1 . . 1 13 Allies Melted 3 | . . . . . . . . . . . . . . . . . . . . . . . . . . 1 . . . 1 . . . . . . . 1 . . Intel | -11 -10 -10 -9 -9 -9 -8 -8 -8 -8 -8 -7 -7 -7 -7 -7 -7 -6 -6 -6 -6 -5 -5 -5 -5 -4 -4 -4 -4 -3 -3 -2 -2 -2 -2 -2 -2 -1 -1 -1 -1 ------- Run | Yrd Mat Min Mat Min Exi Min Mat Gar Mat Gar Fac Gar Fac Gar Fac Gar Fac Gar Fac Gar Fac Gar Fac Gar Fac Gar Fac Gar Res Gar Res Gar Res Qua Frg Gar Acc Gar Acc Com Active Infowar (turns) 41503 | . . . . . . . . . . 954 618 1887 199 2080 109 1212 306 1901 2523 1205 1512 1986 55 1788 425 1485 970 1050 1202 2366 380 1676 887 3468 1859 1929 436 2123 1188 1724 Optics 41503 | . . . . . . . . . . 954 618 1887 199 2080 109 1212 306 1901 2523 1205 1512 1986 55 1788 425 1485 970 1050 1202 2366 380 1676 887 3468 1859 1929 436 2123 1188 1724 Robot Analysis Total . | . . . . . . . . . . . . . . . . . . . . . . . . . . . . . . . . . . . . . . . . . Derelict Logs Recovered . | . . . . . . . . . . . . . . . . . . . . . . . . . . . . . . . . . . . . . . . . . Drone Launches 1 | . . . . . . . . . . . 1 . . . . . . . . . . . . . . . . . . . . . . . . . . . . . Drone Recoveries 1 | . . . . . . . . . . . 1 . . . . . . . . . . . . . . . . . . . . . . . . . . . . . Exploration | -11 -10 -10 -9 -9 -9 -8 -8 -8 -8 -8 -7 -7 -7 -7 -7 -7 -6 -6 -6 -6 -5 -5 -5 -5 -4 -4 -4 -4 -3 -3 -2 -2 -2 -2 -2 -2 -1 -1 -1 -1 ------------- Run | Yrd Mat Min Mat Min Exi Min Mat Gar Mat Gar Fac Gar Fac Gar Fac Gar Fac Gar Fac Gar Fac Gar Fac Gar Fac Gar Fac Gar Res Gar Res Gar Res Qua Frg Gar Acc Gar Acc Com Turns Passed 51977 | 111 2121 267 2801 176 318 435 486 1745 1307 1602 618 1887 199 2080 109 1212 306 1901 2523 1217 1512 1986 55 1788 425 1485 970 1050 1202 2366 380 1676 887 3468 1859 1929 436 2123 1188 1771 Spaces Moved 25630 | 63 739 94 1325 102 222 270 224 962 721 740 390 987 112 1062 48 578 140 939 1481 589 849 1015 19 934 215 699 473 493 585 1071 115 792 432 1758 853 905 149 977 582 926 Core 94 | 8 . . . . . . . . . . . . . . . . . . . . . . . . . . . . . . . . . . . 3 . . . 83 Treads 1207 | 55 739 94 319 . . . . . . . . . . . . . . . . . . . . . . . . . . . . . . . . . . . . . Legs 210 | . . . . . . . . . . . . . . . . . . . . . . . . . . . . . . . . . . . . 118 92 . . . Wheels 24119 | . . . 1006 102 222 270 224 962 721 740 390 987 112 1062 48 578 140 939 1481 589 849 1015 19 934 215 699 473 493 585 1071 115 792 432 1758 853 784 57 977 582 843 Hover . | . . . . . . . . . . . . . . . . . . . . . . . . . . . . . . . . . . . . . . . . . Flight . | . . . . . . . . . . . . . . . . . . . . . . . . . . . . . . . . . . . . . . . . . Fastest Speed 50 | 50 160 240 120 140 140 140 140 140 125 140 140 160 160 145 160 145 160 145 135 135 135 150 150 150 150 150 150 150 180 180 180 180 180 165 150 100 150 150 165 50 Average Speed 164 | 147 234 245 167 140 140 140 140 140 139 151 142 160 160 159 160 157 160 159 150 149 147 150 150 150 163 163 164 167 180 182 180 180 180 172 177 177 220 178 165 154 Slowest Speed 330 | 160 240 320 240 140 140 140 140 140 215 155 160 160 160 160 160 160 160 160 160 150 150 165 150 165 165 165 165 180 195 195 180 180 180 180 195 330 260 225 165 270 Overloaded Moves . | . . . . . . . . . . . . . . . . . . . . . . . . . . . . . . . . . . . . . . . . . Propulsion Burnouts . | . . . . . . . . . . . . . . . . . . . . . . . . . . . . . . . . . . . . . . . . . Robots Hopped . | . . . . . . . . . . . . . . . . . . . . . . . . . . . . . . . . . . . . . . . . . Potential Cave-ins 17 | . . . . . . . . . . . . . . . . . . . . . . . . . . . . . . . . . . . 11 . . . . 6 Cave-ins Triggered . | . . . . . . . . . . . . . . . . . . . . . . . . . . . . . . . . . . . . . . . . . Time Travels 1 | . . . . . . . . . . . . . . . . . . . . . . 1 . . . . . . . . . . . . . . . . . . Exploration Rate (%) 50 | 3 96 14 93 16 61 56 22 85 67 68 20 88 7 95 3 85 7 88 47 70 28 81 1 94 12 82 25 59 21 93 7 83 17 95 24 94 6 95 24 28 Regions Visited 40 Branch Regions 7 Pre-discovered Areas 6 | . 1 . 4 . . . 1 . . . . . . . . . . . . . . . . . . . . . . . . . . . . . . . . . Known Exits Taken 16 | . . . 1 . . . 1 . 1 . 1 . 1 . 1 . 1 . 1 . 1 . 1 . 1 . 1 . 1 . 1 . . . 1 . 1 . . . Unknown Exits Taken 9 | 1 1 1 . 1 1 1 . . . . . . . . . . . . . . . . . . . . . . . . . . 1 1 . . . . 1 . Scrap Searched 1 | . . . . . . 1 . . . . . . . . . . . . . . . . . . . . . . . . . . . . . . . . . . Spaces Dug 105 | . . . . . . . . . 1 4 . . . 2 . . . . 1 . 4 3 . 7 1 4 3 . 5 . . 14 2 5 4 13 . 6 12 14 Terrain Destroyed 2382 | . 17 1 22 7 . 75 16 132 64 66 2 1 . 2 . 135 4 . 2 13 14 100 . 69 80 14 150 7 62 57 2 28 6 56 95 64 8 55 88 868 Melee 4 | . . . . . . . . . . 4 . . . . . . . . . . . . . . . . . . . . . . . . . . . . . . Projectile 517 | . . 1 . . . 1 16 4 43 2 2 1 . 2 . . 4 . 2 13 11 17 . 12 3 14 27 7 17 20 2 28 6 27 18 64 8 55 47 43 AOE 1861 | . 17 . 22 7 . 74 . 128 21 60 . . . . . 135 . . . . 3 83 . 57 77 . 123 . 45 37 . . . 29 77 . . . 41 825 Terrain Rammed . | . . . . . . . . . . . . . . . . . . . . . . . . . . . . . . . . . . . . . . . . . Walls Destroyed . | . . . . . . . . . . . . . . . . . . . . . . . . . . . . . . . . . . . . . . . . . Machines Disabled . | . . . . . . . . . . . . . . . . . . . . . . . . . . . . . . . . . . . . . . . . . Actions | -11 -10 -10 -9 -9 -9 -8 -8 -8 -8 -8 -7 -7 -7 -7 -7 -7 -6 -6 -6 -6 -5 -5 -5 -5 -4 -4 -4 -4 -3 -3 -2 -2 -2 -2 -2 -2 -1 -1 -1 -1 --------- Run | Yrd Mat Min Mat Min Exi Min Mat Gar Mat Gar Fac Gar Fac Gar Fac Gar Fac Gar Fac Gar Fac Gar Fac Gar Fac Gar Fac Gar Res Gar Res Gar Res Qua Frg Gar Acc Gar Acc Com Total 33473 | 78 1031 116 1655 117 230 300 330 1229 899 1037 443 1218 125 1357 80 841 215 1244 1735 823 1037 1373 45 1264 274 1008 631 683 701 1454 286 1011 534 2153 1127 1220 248 1307 789 1225 Wait 3644 | . 201 14 112 4 4 5 60 55 88 80 18 56 3 106 32 172 64 127 151 78 60 102 25 160 33 187 60 94 25 147 158 108 77 246 69 69 65 143 156 230 Move 25602 | 63 738 93 1324 101 221 269 223 961 720 739 390 986 112 1061 48 577 140 938 1481 588 849 1014 19 933 215 698 473 492 585 1070 114 791 431 1757 853 904 148 976 581 926 Hop . | . . . . . . . . . . . . . . . . . . . . . . . . . . . . . . . . . . . . . . . . . Pick Up 300 | 9 17 . 34 . 3 2 3 5 8 13 6 14 . 8 . 9 . 11 7 11 5 16 . 9 . 6 1 7 3 17 . 5 . 7 13 33 3 10 2 3 Fast Attach 132 | 3 9 . 4 . . 2 3 3 7 8 1 . . 3 . 1 . 6 2 2 10 6 . 6 . 3 1 4 3 11 1 1 . 4 7 14 . 6 . 1 Attach 132 | 2 5 1 6 1 . 1 . 9 5 3 3 5 . 4 . 3 2 2 3 6 2 9 . 3 3 2 2 3 3 2 . 3 1 3 12 8 3 2 . 10 Detach 36 | . . . 1 . . . . 5 . . 1 . . 1 . 2 1 . 1 1 . 2 . 2 1 2 1 1 2 . . 1 . . 4 3 . 1 . 3 Swap 210 | . . . 13 2 . 2 3 13 2 21 4 13 1 8 . 4 . 3 7 1 3 10 1 13 . 3 2 6 7 10 1 7 . 9 8 9 4 11 4 5 Drop 272 | . 9 . 25 . 2 2 5 2 8 22 7 12 1 9 . 7 . 12 8 4 7 13 . 14 . 5 2 7 2 16 . 2 . 6 11 34 1 11 2 4 Fire 2540 | . 48 8 134 9 . 17 33 103 61 111 13 81 8 104 . 57 8 112 66 115 100 159 . 65 22 77 89 53 71 119 11 68 25 121 149 98 24 114 44 43 Melee 8 | . . . . . . . . . . 8 . . . . . . . . . . . . . . . . . . . . . . . . . . . . . . Ram . | . . . . . . . . . . . . . . . . . . . . . . . . . . . . . . . . . . . . . . . . . Kick . | . . . . . . . . . . . . . . . . . . . . . . . . . . . . . . . . . . . . . . . . . Crush 7 | 1 4 . 2 . . . . . . . . . . . . . . . . . . . . . . . . . . . . . . . . . . . . . Escape Stasis 531 | . . . . . . . . 73 . 32 . 49 . 48 . 8 . 32 8 16 . 41 . 56 . 24 . 16 . 24 . 24 . . . 47 . 33 . . Rewire 59 | . . . . . . . . . . . . 2 . 5 . 1 . 1 1 1 1 1 . 3 . 1 . . . 38 1 1 . . 1 1 . . . . Trap . | . . . . . . . . . . . . . . . . . . . . . . . . . . . . . . . . . . . . . . . . . Miscellaneous . | . . . . . . . . . . . . . . . . . . . . . . . . . . . . . . . . . . . . . . . . . Route ------- -11/Scrapyard -10/Materials (discovered 5 exits: *Mat x3 / [*Min x2]) -10/Mines -9/Materials (discovered 4 exits: *Mat x3 / *Min) -9/Mines -9/Exiles -8/Mines (discovered 2 exits: *Mat x2) -8/Materials (discovered 2 exits: [*Sto] / Gar) -8/Garrison (discovered 4 exits: *Mat x4) -8/Materials (discovered 5 exits: *Fac x3 / [*Sto] / Gar) -8/Garrison (discovered 3 exits: *Fac x3) -7/Factory (discovered 2 exits: *Fac / Gar) -7/Garrison (discovered 4 exits: *Fac x4) -7/Factory (discovered 2 exits: Fac / Gar) -7/Garrison (discovered 4 exits: *Fac x3 / *Fac) -7/Factory (discovered 2 exits: *Fac / Gar) -7/Garrison (discovered 3 exits: *Fac x3) -6/Factory -6/Garrison (discovered 3 exits: *Fac x3) -6/Factory (discovered 4 exits: *Fac / [*Low x2] / Gar) -6/Garrison (discovered 3 exits: *Fac x3) -5/Factory -5/Garrison (discovered 4 exits: *Fac x4) -5/Factory -5/Garrison (discovered 3 exits: *Fac x3) -4/Factory -4/Garrison (discovered 2 exits: *Fac x2) -4/Factory (discovered 2 exits: *Res / Gar) -4/Garrison (discovered 3 exits: *Res x3) -3/Research (discovered 2 exits: [*Tes] / Gar) -3/Garrison (discovered 3 exits: *Res x3) -2/Research -2/Garrison (discovered 3 exits: *Res x3) -2/Research -2/Quarantine (discovered 3 exits: *Acc / [*Sec] / *Frg) -2/Protoforge (discovered 2 exits: *Acc / Gar) -2/Garrison (discovered 3 exits: *Acc x3) -1/Access -1/Garrison (discovered 3 exits: [*Acc x3]) -1/Access -1/Command History --------- Turn | Location | Event 23 | -11/Scrapyard | Discovered new exit (range 15) 112 | -11/Scrapyard | Entered Materials 314 | -10/Materials | Build established: Mutant 538 | -10/Materials | Discovered new exit (range 9) 959 | -10/Materials | Discovered new exit (range 12) 1024 | -10/Materials | Discovered new exit (range 14) 1344 | -10/Materials | Discovered new exit (range 16) 1524 | -10/Materials | Discovered new exit (range 11) 2233 | -10/Materials | Entered Mines 2249 | -10/Mines | Assembled infested the area 2302 | -10/Mines | Core integrity fell below 50% 2438 | -10/Mines | Discovered new exit (range 5) 2500 | -10/Mines | Entered Materials 2500 | -9/Materials | Evolved 2 slots: Utility x2 2848 | -9/Materials | Identified exit to Mines 3736 | -9/Materials | Discovered new exit (range 16) 4004 | -9/Materials | Discovered new exit (range 9) 4438 | -9/Materials | Discovered new exit (range 9) 4456 | -9/Materials | Central database locked down 5062 | -9/Materials | Loaded intel: 23 trap records 5089 | -9/Materials | Loaded intel: 16 interactive machine locations 5107 | -9/Materials | Learned 2 Storage zone layouts 5137 | -9/Materials | Learned location of Zion (-6) 5177 | -9/Materials | Learned Storage emergency access door positions 5301 | -9/Materials | Entered Mines 5314 | -9/Mines | Met a Derelict bent on vengeance 5334 | -9/Mines | Deemed a non-threat by the Exiles lab entrance 5334 | -9/Mines | Discovered new exit (range 5) 5477 | -9/Mines | Entered Exiles 5512 | -9/Exiles | Met 8R-AWN 5533 | -9/Exiles | Met EX-HEX 5577 | -9/Exiles | Met EX-BIN 5603 | -9/Exiles | Aligned with FarCom system 5605 | -9/Exiles | Given EX-Vault access code 5638 | -9/Exiles | Opened EX-Vault 5646 | -9/Exiles | Found Superbattery 5650 | -9/Exiles | Found Chronowheel 5654 | -9/Exiles | Found Supersonic Drone Bay 5683 | -9/Exiles | Warned to stay clear of 0b10 Research branches 5721 | -9/Exiles | Met EX-DEC 5775 | -9/Exiles | Discovered new exit (range 14) 5795 | -9/Exiles | Stole three prototypes: Superbattery, Supersonic Drone Bay, Chronowheel 5795 | -9/Exiles | Entered Mines 5945 | -8/Mines | Discovered new exit (range 15) 6006 | -8/Mines | Discovered new exit (range 8) 6035 | -8/Mines | Core integrity fell below 50% 6230 | -8/Mines | Entered Materials 6230 | -8/Materials | Evolved 2 slots: Utility x2 6265 | -8/Materials | Identified exit to Garrison 6356 | -8/Materials | Discovered new exit (range 6) 6716 | -8/Materials | Entered Garrison 6738 | -8/Garrison | Triggered checkpoint 6799 | -8/Garrison | Discovered new exit (range 6) 7023 | -8/Garrison | Triggered checkpoint 7136 | -8/Garrison | Triggered checkpoint 7258 | -8/Garrison | Discovered new exit (range 15) 7450 | -8/Garrison | Triggered checkpoint 7600 | -8/Garrison | Triggered checkpoint 7625 | -8/Garrison | Installed Relay Interface Framework 7681 | -8/Garrison | Discovered new exit (range 12) 7728 | -8/Garrison | Triggered checkpoint 7856 | -8/Garrison | Triggered checkpoint 8037 | -8/Garrison | Discovered new exit (range 11) 8074 | -8/Garrison | Triggered checkpoint 8132 | -8/Garrison | Discovered new exit (range 26) 8132 | -8/Garrison | Discovered new exit (range 65) 8132 | -8/Garrison | Discovered new exit (range 25) 8132 | -8/Garrison | Discovered new exit (range 88) 8258 | -8/Garrison | Garrison Relay disabled 8337 | -8/Garrison | Garrison Relay disabled 8461 | -8/Garrison | Entered Materials 8594 | -8/Materials | Central database locked down 8683 | -8/Materials | Build established: Bothacker-Mutant 8776 | -8/Materials | Discovered new exit (range 5) 9018 | -8/Materials | Discovered new exit (range 14) 9336 | -8/Materials | Learned location of 1 exit from Recycling 9407 | -8/Materials | Learned Storage emergency access door positions 9435 | -8/Materials | Discovered new exit (range 8) 9468 | -8/Materials | Learned Storage stockpile data 9521 | -8/Materials | Identified exit to Factory 9599 | -8/Materials | Learned Storage stockpile data 9625 | -8/Materials | Learned Factory emergency access door positions 9734 | -8/Materials | Identified exit to Garrison 9768 | -8/Materials | Entered Garrison 9819 | -8/Garrison | Core integrity fell below 50% 10150 | -8/Garrison | Triggered checkpoint 10207 | -8/Garrison | Garrison Relay disabled 10649 | -8/Garrison | Triggered checkpoint 10784 | -8/Garrison | Expanded RIF knowledge: Alert ID Control 10874 | -8/Garrison | Triggered checkpoint 11092 | -8/Garrison | Triggered checkpoint 11216 | -8/Garrison | Destroyed 9 combat bots 11283 | -8/Garrison | Discovered exit to Factory (range 26) 11283 | -8/Garrison | Discovered exit to Factory (range 25) 11283 | -8/Garrison | Discovered exit to Factory (range 75) 11329 | -8/Garrison | Garrison Relay disabled 11370 | -8/Garrison | Entered Factory 11370 | -7/Factory | Evolved 2 slots: Utility x2 11372 | -7/Factory | FarCom data flow suspended 11413 | -7/Factory | Discovered new exit (range 167) 11770 | -7/Factory | First assault squad dispatched 11982 | -7/Factory | P-60 Hacker assimilated allied Trooper 4a 11987 | -7/Factory | Identified exit to Garrison 11988 | -7/Factory | Entered Garrison 11988 | -7/Garrison | Accompanied by 1 ally 12048 | -7/Garrison | Triggered checkpoint 12055 | -7/Garrison | Destroyed 7 combat bots 12086 | -7/Garrison | Garrison Relay disabled 12412 | -7/Garrison | Triggered checkpoint 12436 | -7/Garrison | Triggered checkpoint 12569 | -7/Garrison | Discovered new exit (range 15) 12619 | -7/Garrison | Expanded RIF knowledge: Zone Cloak 12704 | -7/Garrison | Triggered checkpoint 12730 | -7/Garrison | Garrison Relay disabled 12824 | -7/Garrison | Triggered checkpoint 12938 | -7/Garrison | Triggered checkpoint 12987 | -7/Garrison | Garrison Relay disabled 13014 | -7/Garrison | Triggered checkpoint 13043 | -7/Garrison | Discovered new exit (range 6) 13203 | -7/Garrison | Rescued a captive Derelict 13237 | -7/Garrison | Discovered new exit (range 19) 13360 | -7/Garrison | Triggered checkpoint 13532 | -7/Garrison | Triggered checkpoint 13558 | -7/Garrison | Garrison Relay disabled 13600 | -7/Garrison | Lost 3 allies 13606 | -7/Garrison | Garrison Relay disabled 13672 | -7/Garrison | Discovered new exit (range 15) 13875 | -7/Garrison | Entered Factory 13875 | -7/Factory | Accompanied by 6 allies 13976 | -7/Factory | Discovered new exit (range 203) 14074 | -7/Factory | Identified exit to Garrison 14074 | -7/Factory | Entered Garrison 14074 | -7/Garrison | Accompanied by 6 allies 14376 | -7/Garrison | Triggered checkpoint 14429 | -7/Garrison | Garrison Relay disabled 14532 | -7/Garrison | Triggered checkpoint 14542 | -7/Garrison | Triggered checkpoint 14580 | -7/Garrison | Triggered checkpoint 14584 | -7/Garrison | Triggered checkpoint 14772 | -7/Garrison | Discovered new exit (range 16) 14802 | -7/Garrison | Expanded RIF knowledge: Hotswap 14840 | -7/Garrison | Triggered checkpoint 14869 | -7/Garrison | Garrison Relay disabled 15072 | -7/Garrison | Triggered checkpoint 15090 | -7/Garrison | Build established: Botlord-Mutant 15125 | -7/Garrison | Discovered new exit (range 3) 15164 | -7/Garrison | Rescued a captive Derelict 15195 | -7/Garrison | Garrison Relay disabled 15344 | -7/Garrison | Triggered checkpoint 15351 | -7/Garrison | Garrison Relay disabled 15414 | -7/Garrison | Triggered checkpoint 15427 | -7/Garrison | Discovered new exit (range 5) 15519 | -7/Garrison | Discovered new exit (range 10) 16154 | -7/Garrison | Entered Factory 16154 | -7/Factory | Accompanied by 17 allies 16166 | -7/Factory | Discovered new exit (range 19) 16263 | -7/Factory | Identified exit to Garrison 16263 | -7/Factory | Entered Garrison 16263 | -7/Garrison | Accompanied by 17 allies 16311 | -7/Garrison | Phase Generator disabled 16343 | -7/Garrison | Triggered checkpoint 16486 | -7/Garrison | Discovered new exit (range 41) 16486 | -7/Garrison | Discovered new exit (range 67) 16486 | -7/Garrison | Discovered new exit (range 50) 16489 | -7/Garrison | Triggered checkpoint 16510 | -7/Garrison | Garrison Relay disabled 16580 | -7/Garrison | Rescued a captive Derelict 16581 | -7/Garrison | Rescued a captive Derelict 16719 | -7/Garrison | Triggered checkpoint 16742 | -7/Garrison | Expanded RIF knowledge: Threat Obfuscation 16753 | -7/Garrison | Lost 3 allies 16771 | -7/Garrison | Triggered checkpoint 16833 | -7/Garrison | Triggered checkpoint 17031 | -7/Garrison | Triggered checkpoint 17124 | -7/Garrison | Found embedded Infiltrators 17345 | -7/Garrison | Expanded RIF knowledge: Autoassimilate 17475 | -7/Garrison | Entered Factory 17475 | -6/Factory | Accompanied by 17 allies 17475 | -6/Factory | Evolved 2 slots: Utility x2 17717 | -6/Factory | Identified exit to Garrison 17781 | -6/Factory | Entered Garrison 17781 | -6/Garrison | Accompanied by 15 allies 17813 | -6/Garrison | Triggered checkpoint 17849 | -6/Garrison | Garrison Relay disabled 17984 | -6/Garrison | Lost 3 allies 18153 | -6/Garrison | Triggered checkpoint 18161 | -6/Garrison | Triggered checkpoint 18210 | -6/Garrison | Triggered checkpoint 18233 | -6/Garrison | Lost 3 allies 18244 | -6/Garrison | Discovered new exit (range 8) 18281 | -6/Garrison | Triggered checkpoint 18317 | -6/Garrison | Garrison Relay disabled 18729 | -6/Garrison | Discovered new exit (range 12) 19138 | -6/Garrison | Expanded RIF knowledge: Autooverride 19150 | -6/Garrison | Discovered new exit (range 13) 19205 | -6/Garrison | Triggered checkpoint 19227 | -6/Garrison | Found embedded Infiltrators 19682 | -6/Garrison | Entered Factory 19682 | -6/Factory | Accompanied by 18 allies 19934 | -6/Factory | Assimilated Heavy ARC 5a with formatsys_deep 20315 | -6/Factory | Allied Derelicts emerged from ambush trap array 20511 | -6/Factory | Lost 5 allies 20707 | -6/Factory | Lost 3 allies 20732 | -6/Factory | First assault squad dispatched 21197 | -6/Factory | Discovered new exit (range 13) 22084 | -6/Factory | Discovered new exit (range 5) 22090 | -6/Factory | Discovered new exit (range 8) 22181 | -6/Factory | Identified exit to Garrison 22205 | -6/Factory | Entered Garrison 22205 | -6/Garrison | Accompanied by 10 allies 22263 | -6/Garrison | Expanded RIF knowledge: Zone Cloak 22335 | -6/Garrison | Garrison Relay disabled 22349 | -6/Garrison | Triggered checkpoint 22433 | -6/Garrison | Lost 5 allies 22522 | -6/Garrison | P-60 Hacker assimilated allied Veteran 5b 22567 | -6/Garrison | Spotted B-75 Beast 22608 | -6/Garrison | Destroyed B-75 Beast 22618 | -6/Garrison | Lost 3 allies 22623 | -6/Garrison | Triggered checkpoint 22630 | -6/Garrison | Triggered checkpoint 22715 | -6/Garrison | Triggered checkpoint 22721 | -6/Garrison | Triggered checkpoint 22770 | -6/Garrison | Discovered new exit (range 48) 22770 | -6/Garrison | Discovered new exit (range 23) 22770 | -6/Garrison | Discovered new exit (range 58) 22865 | -6/Garrison | Garrison Relay disabled 22911 | -6/Garrison | Triggered checkpoint 22915 | -6/Garrison | Spotted Striker 22915 | -6/Garrison | Spotted Striker 22922 | -6/Garrison | Allies destroyed Striker 22931 | -6/Garrison | Allies destroyed Striker 22957 | -6/Garrison | Rewired Executioner 22959 | -6/Garrison | Lost 3 allies 23149 | -6/Garrison | Triggered checkpoint 23217 | -6/Garrison | Garrison Relay disabled 23283 | -6/Garrison | Triggered checkpoint 23325 | -6/Garrison | Lost 4 allies 23337 | -6/Garrison | Garrison Relay disabled 23422 | -6/Garrison | Entered Factory 23422 | -5/Factory | Accompanied by 3 allies 23422 | -5/Factory | Evolved 2 slots: Utility x2 23818 | -5/Factory | Garrison activated, responded to threat 23845 | -5/Factory | P-70 Sage assimilated allied Machinist 6a 23849 | -5/Factory | P-70 Sage assimilated allied Soldier 6b 24015 | -5/Factory | Lost 4 allies 24385 | -5/Factory | P-70 Sage assimilated allied Warrior 6a 24851 | -5/Factory | Lost 4 allies 24932 | -5/Factory | Identified exit to Garrison 24934 | -5/Factory | Entered Garrison 24934 | -5/Garrison | Accompanied by 4 allies 24956 | -5/Garrison | Triggered checkpoint 24977 | -5/Garrison | Discovered new exit (range 6) 25093 | -5/Garrison | Spotted B-75 Beast 25109 | -5/Garrison | Allies destroyed B-75 Beast 25127 | -5/Garrison | Activated Chronowheel 25127 | -5/Garrison | Spacetime reconverged on an earlier point 25131 | -5/Garrison | Expanded RIF knowledge: Robot Detection 25136 | -5/Garrison | Lost 4 allies 25169 | -5/Garrison | Triggered checkpoint 25180 | -5/Garrison | Triggered checkpoint 25257 | -5/Garrison | Discovered new exit (range 9) 25400 | -5/Garrison | Triggered checkpoint 25539 | -5/Garrison | Spotted B-75 Beast 25552 | -5/Garrison | Allies destroyed B-75 Beast 25718 | -5/Garrison | Triggered checkpoint 26048 | -5/Garrison | Discovered new exit (range 14) 26078 | -5/Garrison | Triggered checkpoint 26126 | -5/Garrison | Garrison Relay disabled 26140 | -5/Garrison | Triggered checkpoint 26316 | -5/Garrison | Discovered new exit (range 8) 26493 | -5/Garrison | Garrison Relay disabled 26498 | -5/Garrison | Triggered checkpoint 26532 | -5/Garrison | Triggered checkpoint 26579 | -5/Garrison | Lost 4 allies 26617 | -5/Garrison | Garrison Relay disabled 26920 | -5/Garrison | Entered Factory 26920 | -5/Factory | Accompanied by 24 allies 26949 | -5/Factory | Identified exit to Garrison 26975 | -5/Factory | Entered Garrison 26975 | -5/Garrison | Accompanied by 24 allies 27005 | -5/Garrison | Triggered checkpoint 27020 | -5/Garrison | Rescued a captive Derelict 27021 | -5/Garrison | Rescued a captive Derelict 27098 | -5/Garrison | Found embedded Infiltrators 27114 | -5/Garrison | Spotted B-75 Beast 27127 | -5/Garrison | Triggered checkpoint 27129 | -5/Garrison | Assimilated Heavy ARC 6a with formatsys_deep 27143 | -5/Garrison | Allies destroyed B-75 Beast 27150 | -5/Garrison | Triggered checkpoint 27156 | -5/Garrison | Triggered checkpoint 27186 | -5/Garrison | Triggered checkpoint 27225 | -5/Garrison | Lost 3 allies 27260 | -5/Garrison | Spotted Executioner 27313 | -5/Garrison | Found Prototype Device 27313 | -5/Garrison | Identified Adv. Kinecellerator 27319 | -5/Garrison | Lost 3 allies 27411 | -5/Garrison | Heavy support dispatched to Factory 27611 | -5/Garrison | Spotted B-75 Beast 27619 | -5/Garrison | Allies destroyed B-75 Beast 27683 | -5/Garrison | Discovered new exit (range 13) 27717 | -5/Garrison | Triggered checkpoint 27792 | -5/Garrison | Garrison Relay disabled 27895 | -5/Garrison | Heavy support dispatched to Factory 27955 | -5/Garrison | Triggered checkpoint 28019 | -5/Garrison | Discovered new exit (range 19) 28049 | -5/Garrison | H-XX Assembler disabled 28178 | -5/Garrison | Garrison Relay disabled 28390 | -5/Garrison | Discovered new exit (range 13) 28429 | -5/Garrison | Triggered checkpoint 28466 | -5/Garrison | Garrison Relay disabled 28512 | -5/Garrison | Expanded RIF knowledge: Command Fork 28763 | -5/Garrison | Entered Factory 28763 | -4/Factory | Accompanied by 25 allies 28763 | -4/Factory | Evolved 2 slots: Utility x2 28946 | -4/Factory | Lost 5 allies 29151 | -4/Factory | Garrison activated, responded to threat 29178 | -4/Factory | Identified exit to Garrison 29188 | -4/Factory | Entered Garrison 29188 | -4/Garrison | Accompanied by 12 allies 29212 | -4/Garrison | Lost 10 allies 29289 | -4/Garrison | Spotted B-75 Beast 29295 | -4/Garrison | Spotted B-90 Cyclops 29309 | -4/Garrison | Destroyed B-75 Beast 29317 | -4/Garrison | Allies destroyed B-90 Cyclops 29334 | -4/Garrison | Found Quantum Capacitor 29340 | -4/Garrison | Rewired B-75 Beast 29428 | -4/Garrison | Triggered checkpoint 29439 | -4/Garrison | Garrison Relay disabled 29461 | -4/Garrison | Rescued a captive Derelict 29462 | -4/Garrison | Rescued a captive Derelict 29556 | -4/Garrison | Triggered checkpoint 29582 | -4/Garrison | Triggered checkpoint 29602 | -4/Garrison | Triggered checkpoint 29608 | -4/Garrison | Triggered checkpoint 29796 | -4/Garrison | Discovered new exit (range 12) 29837 | -4/Garrison | Expanded RIF knowledge: Threat Obfuscation 29923 | -4/Garrison | Garrison Relay disabled 30106 | -4/Garrison | Garrison Relay disabled 30168 | -4/Garrison | Discovered new exit (range 12) 30247 | -4/Garrison | Garrison Relay disabled 30374 | -4/Garrison | P-80 Master assimilated allied Veteran 7a 30375 | -4/Garrison | Garrison Relay disabled 30382 | -4/Garrison | P-80 Master assimilated allied Machinist 7a 30532 | -4/Garrison | Expanded RIF knowledge: Signal Jamming 30673 | -4/Garrison | Entered Factory 30673 | -4/Factory | Accompanied by 21 allies 30810 | -4/Factory | Spotted B-86 Titan 30828 | -4/Factory | Allies destroyed B-86 Titan 30829 | -4/Factory | Spotted B-86 Titan 30845 | -4/Factory | Allies destroyed B-86 Titan 30896 | -4/Factory | Lost 3 allies 30995 | -4/Factory | Garrison activated, responded to threat 31062 | -4/Factory | Lost 5 allies 31164 | -4/Factory | Lost 5 allies 31629 | -4/Factory | Discovered new exit (range 14) 31638 | -4/Factory | Identified exit to Garrison 31643 | -4/Factory | Entered Garrison 31643 | -4/Garrison | Accompanied by 9 allies 31646 | -4/Garrison | Triggered checkpoint 31647 | -4/Garrison | Triggered checkpoint 31702 | -4/Garrison | Found Adv. Powered Armor 31706 | -4/Garrison | Found Adv. Powered Armor 31762 | -4/Garrison | Garrison Relay disabled 31831 | -4/Garrison | Triggered checkpoint 31888 | -4/Garrison | Garrison Relay disabled 31960 | -4/Garrison | Discovered new exit (range 73) 31960 | -4/Garrison | Discovered new exit (range 61) 31960 | -4/Garrison | Discovered new exit (range 32) 31996 | -4/Garrison | Spotted B-86 Titan 31998 | -4/Garrison | Assimilated Titan 7a with formatsys_high 32006 | -4/Garrison | Triggered checkpoint 32009 | -4/Garrison | Triggered checkpoint 32013 | -4/Garrison | Triggered checkpoint 32013 | -4/Garrison | Triggered checkpoint 32117 | -4/Garrison | Triggered checkpoint 32120 | -4/Garrison | Expanded RIF knowledge: Patrol Navigation 32168 | -4/Garrison | Garrison Relay disabled 32341 | -4/Garrison | Spotted B-86 Titan 32356 | -4/Garrison | Allies destroyed B-86 Titan 32374 | -4/Garrison | Spotted B-86 Titan 32387 | -4/Garrison | Allies destroyed B-86 Titan 32537 | -4/Garrison | Triggered checkpoint 32572 | -4/Garrison | Garrison Relay disabled 32693 | -4/Garrison | Entered Research 32693 | -3/Research | Accompanied by 12 allies 32693 | -3/Research | Evolved 2 slots: Utility x2 32693 | -3/Research | Discovered new exit (range 12) 32933 | -3/Research | Found Prototype Launcher 32933 | -3/Research | Identified Hellfire Missile Launcher 32942 | -3/Research | Found Hellfire Missile Launcher 32945 | -3/Research | Found Hellfire Missile Launcher 33077 | -3/Research | Spotted B-86 Titan 33105 | -3/Research | Allies destroyed B-86 Titan 33378 | -3/Research | Garrison activated, responded to threat 33385 | -3/Research | P-80 Master assimilated allied Veteran 7m 33395 | -3/Research | P-80 Master assimilated allied Veteran 7j 33420 | -3/Research | Lost 3 allies 33429 | -3/Research | Unchained authorized (GL-D0S) 33505 | -3/Research | Spotted B-86 Titan 33506 | -3/Research | Assimilated Heavy ARC 8a with formatsys_deep 33515 | -3/Research | Lost 3 allies 33625 | -3/Research | Lost 10 allies 33887 | -3/Research | Identified exit to Garrison 33895 | -3/Research | Entered Garrison 33895 | -3/Garrison | Accompanied by 8 allies 33941 | -3/Garrison | Triggered checkpoint 33960 | -3/Garrison | Garrison Relay disabled 34158 | -3/Garrison | Triggered checkpoint 34159 | -3/Garrison | Triggered checkpoint 34215 | -3/Garrison | Triggered checkpoint 34239 | -3/Garrison | Triggered checkpoint 34282 | -3/Garrison | Lost 8 allies 34475 | -3/Garrison | Discovered new exit (range 19) 34547 | -3/Garrison | Rescued a captive Derelict 34554 | -3/Garrison | Rescued a captive Derelict 34603 | -3/Garrison | Triggered checkpoint 34657 | -3/Garrison | Garrison Relay disabled 34662 | -3/Garrison | Garrison Relay disabled 34779 | -3/Garrison | Spotted B-86 Titan 34800 | -3/Garrison | Allies destroyed B-86 Titan 34810 | -3/Garrison | Found Relay Coupler [Proto] 34815 | -3/Garrison | Found Relay Coupler [Proto] 34830 | -3/Garrison | Lost 3 allies 35010 | -3/Garrison | Spotted B-86 Titan 35022 | -3/Garrison | Destroyed B-86 Titan 35086 | -3/Garrison | Discovered new exit (range 13) 35129 | -3/Garrison | Triggered checkpoint 35185 | -3/Garrison | Garrison Relay disabled 35260 | -3/Garrison | P-80 Master assimilated allied Artificer 8a 35269 | -3/Garrison | P-80 Master assimilated allied Warden 8j 35271 | -3/Garrison | P-80 Master assimilated allied Warden 8k 35543 | -3/Garrison | Discovered new exit (range 12) 35570 | -3/Garrison | Expanded RIF knowledge: Autooverride 35649 | -3/Garrison | Assimilated Heavy ARC 8b with formatsys_deep 35678 | -3/Garrison | Expanded RIF knowledge: Autooverride 35721 | -3/Garrison | Garrison Relay disabled 35905 | -3/Garrison | Triggered checkpoint 36261 | -3/Garrison | Entered Research 36261 | -2/Research | Accompanied by 19 allies 36261 | -2/Research | Evolved 2 slots: Utility x2 36515 | -2/Research | Identified exit to Garrison 36515 | -2/Research | Watched by a mysterious "MATRIX" hacker 36641 | -2/Research | Entered Garrison 36641 | -2/Garrison | Accompanied by 28 allies 36685 | -2/Garrison | Triggered checkpoint 36715 | -2/Garrison | Expanded RIF knowledge: Program Shield 36745 | -2/Garrison | Garrison Relay disabled 36867 | -2/Garrison | Spotted B-90 Cyclops 36877 | -2/Garrison | Lost 5 allies 36900 | -2/Garrison | Spotted B-90 Cyclops 36901 | -2/Garrison | Triggered checkpoint 36906 | -2/Garrison | Triggered checkpoint 36909 | -2/Garrison | Triggered checkpoint 36910 | -2/Garrison | Triggered checkpoint 36966 | -2/Garrison | Lost 12 allies 37122 | -2/Garrison | Garrison Relay disabled 37209 | -2/Garrison | Discovered new exit (range 17) 37327 | -2/Garrison | Discovered new exit (range 12) 37381 | -2/Garrison | Triggered checkpoint 37420 | -2/Garrison | Discovered new exit (range 22) 37420 | -2/Garrison | Discovered new exit (range 61) 37420 | -2/Garrison | Discovered new exit (range 68) 37447 | -2/Garrison | Garrison Relay disabled 37683 | -2/Garrison | Found Relay Coupler [Proto] 37810 | -2/Garrison | Destroyed B-90 Cyclops 37860 | -2/Garrison | Rewired B-75 Beast 38115 | -2/Garrison | Found Relay Coupler [Proto] 38317 | -2/Garrison | Entered Research 38317 | -2/Research | Accompanied by 30 allies 38526 | -2/Research | Spotted B-90 Cyclops 39049 | -2/Research | Spotted B-90 Cyclops 39085 | -2/Research | Discovered new exit (range 18) 39204 | -2/Research | Entered Quarantine 39204 | -2/Quarantine | Accompanied by 30 allies 39299 | -2/Quarantine | Found Alien Artifact 39381 | -2/Quarantine | Garrison activated, responded to threat 39446 | -2/Quarantine | Lost 9 allies 39561 | -2/Quarantine | Discovered new exit (range 5) 39569 | -2/Quarantine | Lost 5 allies 39975 | -2/Quarantine | Spotted Alpha 7 40012 | -2/Quarantine | Found Alien Launcher 40030 | -2/Quarantine | Allies destroyed Alpha 7 40055 | -2/Quarantine | Lost 4 allies 40127 | -2/Quarantine | Spotted Fortress 40130 | -2/Quarantine | Assimilated Fortress with formatsys_high 40642 | -2/Quarantine | System corruption reached 10% 40691 | -2/Quarantine | Lost 4 allies 41344 | -2/Quarantine | Found Alien Artifact 41474 | -2/Quarantine | Lost 3 allies 41475 | -2/Quarantine | Scanned by Researcher 41537 | -2/Quarantine | Identified Phase Armor 42024 | -2/Quarantine | Found Alien Artifact 42043 | -2/Quarantine | Found Alien Artifact 42555 | -2/Quarantine | Discovered new exit (range 18) 42560 | -2/Quarantine | Discovered new exit (range 14) 42672 | -2/Quarantine | Entered Protoforge 42672 | -2/Protoforge | Accompanied by 15 allies 42747 | -2/Protoforge | Superfortress began startup sequence 42758 | -2/Protoforge | Spotted B-90 Cyclops 42799 | -2/Protoforge | Allies destroyed B-90 Cyclops 42803 | -2/Protoforge | Lost 3 allies 42904 | -2/Protoforge | Discovered new exit (range 20) 43169 | -2/Protoforge | Spotted Hotshot 43169 | -2/Protoforge | Spotted Hotshot 43169 | -2/Protoforge | Spotted Hotshot 43170 | -2/Protoforge | Autoassimilated Hotshot with RIF 43171 | -2/Protoforge | Spotted Hotshot 43176 | -2/Protoforge | Spotted Hotshot 43181 | -2/Protoforge | Allies destroyed Hotshot 43184 | -2/Protoforge | Allies destroyed Hotshot 43187 | -2/Protoforge | Destroyed Hotshot 43199 | -2/Protoforge | Allies destroyed Hotshot 43221 | -2/Protoforge | Spotted Overlord 43225 | -2/Protoforge | Assimilated Overlord with formatsys_high 43266 | -2/Protoforge | Lost 13 allies 43465 | -2/Protoforge | Found Prototype Device 43465 | -2/Protoforge | Identified Cep. Antimissile System 43550 | -2/Protoforge | Found Prototype Device 43550 | -2/Protoforge | Identified Exp. Trap Extractor 43606 | -2/Protoforge | Found Prototype Protection 43606 | -2/Protoforge | Identified Cep. Core Shell 43693 | -2/Protoforge | Found Exp. Remote Shield 43697 | -2/Protoforge | Found Exp. Weapon Cycler 43700 | -2/Protoforge | Found Centrium Heavy Armor Plating 43708 | -2/Protoforge | Lost 3 allies 43712 | -2/Protoforge | Found Exp. EM Shield 43714 | -2/Protoforge | Found Exp. Targeting Computer 43743 | -2/Protoforge | Identified Terrabomb (x2) 43743 | -2/Protoforge | Used Terrabomb 43743 | -2/Protoforge | Additional patrols dispatched to research labs 43751 | -2/Protoforge | Spotted Hotshot 43758 | -2/Protoforge | Spotted Hotshot 43759 | -2/Protoforge | Spotted Hotshot 43760 | -2/Protoforge | Spotted Hotshot 43811 | -2/Protoforge | Found Prototype Device 43814 | -2/Protoforge | Destroyed Hotshot 43817 | -2/Protoforge | Destroyed Hotshot 43820 | -2/Protoforge | Destroyed Hotshot 43825 | -2/Protoforge | Destroyed Hotshot 43833 | -2/Protoforge | Spotted Immortal 43833 | -2/Protoforge | Spotted Immortal 43852 | -2/Protoforge | Spotted Decapitator 43853 | -2/Protoforge | Spotted Decapitator 43853 | -2/Protoforge | Spotted Decapitator 43853 | -2/Protoforge | Spotted Decapitator 43853 | -2/Protoforge | Spotted Decapitator 43853 | -2/Protoforge | Spotted Decapitator 43853 | -2/Protoforge | Spotted Decapitator 43855 | -2/Protoforge | Spotted Decapitator 43859 | -2/Protoforge | Assimilated Immortal with formatsys_high 43864 | -2/Protoforge | Autoassimilated Decapitator with RIF 43871 | -2/Protoforge | Allies destroyed Decapitator 43874 | -2/Protoforge | Destroyed Decapitator 43903 | -2/Protoforge | Allies destroyed Decapitator 43904 | -2/Protoforge | Allies destroyed Decapitator 44008 | -2/Protoforge | Used Terrabomb 44034 | -2/Protoforge | Destroyed Immortal 44079 | -2/Protoforge | Found Cep. Zero-point Core 44095 | -2/Protoforge | Found Faulty Cep. Zero-point Core 44200 | -2/Protoforge | Core integrity fell below 50% 44207 | -2/Protoforge | Garrison activated, responded to threat 44270 | -2/Protoforge | Spotted V489-s 44272 | -2/Protoforge | Spotted V277-x 44276 | -2/Protoforge | Spotted V835-r 44290 | -2/Protoforge | Found Cep. XC Strikerail 44297 | -2/Protoforge | Destroyed V835-r 44325 | -2/Protoforge | Destroyed V489-s 44343 | -2/Protoforge | Destroyed V277-x 44375 | -2/Protoforge | Found Faulty Cep. Helical Railcannon 44378 | -2/Protoforge | Found Faulty Cep. Helical Railcannon 44379 | -2/Protoforge | Identified Crosscalibrator 44393 | -2/Protoforge | Found Cep. XC Strikerail 44531 | -2/Protoforge | Identified exit to Garrison 44531 | -2/Protoforge | Entered Garrison 44547 | -2/Garrison | Triggered checkpoint 44592 | -2/Garrison | Garrison Relay disabled 44647 | -2/Garrison | Core integrity fell below 20% 44735 | -2/Garrison | Found Relay Coupler [Proto] 44740 | -2/Garrison | Found Relay Coupler [Proto] 44744 | -2/Garrison | Found Relay Coupler [Proto] 44753 | -2/Garrison | Found Relay Coupler [Proto] 44869 | -2/Garrison | Garrison Relay disabled 44951 | -2/Garrison | Triggered checkpoint 44957 | -2/Garrison | Spotted B-90 Cyclops 44965 | -2/Garrison | Destroyed B-90 Cyclops 44973 | -2/Garrison | Triggered checkpoint 44977 | -2/Garrison | System corruption reached 30% 45003 | -2/Garrison | Triggered checkpoint 45139 | -2/Garrison | Triggered checkpoint 45182 | -2/Garrison | Garrison Relay disabled 45220 | -2/Garrison | Discovered new exit (range 10) 45457 | -2/Garrison | Discovered new exit (range 9) 45465 | -2/Garrison | Triggered checkpoint 45474 | -2/Garrison | Expanded RIF knowledge: Autoassimilate 45507 | -2/Garrison | Triggered checkpoint 45507 | -2/Garrison | Assimilated Heavy ARC 9a with formatsys_deep 45527 | -2/Garrison | Expanded RIF knowledge: Structural Interface 45545 | -2/Garrison | Triggered checkpoint 45631 | -2/Garrison | Garrison Relay disabled 45783 | -2/Garrison | Garrison Relay disabled 45939 | -2/Garrison | Triggered checkpoint 45952 | -2/Garrison | Garrison Relay disabled 46014 | -2/Garrison | Discovered new exit (range 21) 46025 | -2/Garrison | Triggered checkpoint 46460 | -2/Garrison | Entered Access 46460 | -1/Access | Accompanied by 19 allies 46460 | -1/Access | Evolved 2 slots: Utility x2 46603 | -1/Access | Garrison activated, responded to threat 46661 | -1/Access | Lost 5 allies 46840 | -1/Access | Identified exit to Garrison 46896 | -1/Access | Entered Garrison 46896 | -1/Garrison | Accompanied by 22 allies 46938 | -1/Garrison | Triggered checkpoint 46958 | -1/Garrison | Garrison Relay disabled 47100 | -1/Garrison | Spotted B-99 Colossus 47101 | -1/Garrison | Lost 3 allies 47107 | -1/Garrison | Assimilated ARC 10a with formatsys_deep 47124 | -1/Garrison | Destroyed B-99 Colossus 47132 | -1/Garrison | Triggered checkpoint 47140 | -1/Garrison | Triggered checkpoint 47151 | -1/Garrison | Heavy support dispatched to Access 47153 | -1/Garrison | Lost 3 allies 47228 | -1/Garrison | Discovered new exit (range 19) 47231 | -1/Garrison | Lost 9 allies 47256 | -1/Garrison | Rescued a captive Derelict 47271 | -1/Garrison | Rescued a captive Derelict 47339 | -1/Garrison | Expanded RIF knowledge: Watcher Feeds 47400 | -1/Garrison | Found embedded Infiltrators 47408 | -1/Garrison | Learned Access security intel 47450 | -1/Garrison | Triggered checkpoint 47783 | -1/Garrison | Heavy support dispatched to Access 47916 | -1/Garrison | Discovered new exit (range 15) 48024 | -1/Garrison | Garrison Relay disabled 48219 | -1/Garrison | Spotted B-99 Colossus 48227 | -1/Garrison | Spotted B-99 Colossus 48272 | -1/Garrison | Destroyed B-99 Colossus 48284 | -1/Garrison | Triggered checkpoint 48288 | -1/Garrison | Triggered checkpoint 48308 | -1/Garrison | Lost 4 allies 48310 | -1/Garrison | Heavy support dispatched to Access 48312 | -1/Garrison | Found Unknown Device 48312 | -1/Garrison | Identified Adv. Force Booster 48329 | -1/Garrison | Discovered new exit (range 14) 48337 | -1/Garrison | Found Corrupted Prototype Ballistic Gun 48337 | -1/Garrison | Identified Multirail 48390 | -1/Garrison | H-XX Assembler disabled 48496 | -1/Garrison | Garrison Relay disabled 48761 | -1/Garrison | P-80 Master assimilated allied BI-D25(x) 48768 | -1/Garrison | Spotted B-99 Colossus 48772 | -1/Garrison | Assimilated Colossus 10a with formatsys_high 48791 | -1/Garrison | Found Relay Coupler [Proto] 49019 | -1/Garrison | Entered Access 49019 | -1/Access | Accompanied by 25 allies 49118 | -1/Access | Found Spectral Analyzer 49162 | -1/Access | Found Imp. Powered Armor 49409 | -1/Access | Master 10b assimilated hostile G-73 Enforcer 49455 | -1/Access | Energy Cycler disabled 49640 | -1/Access | Master 10b assimilated hostile H-88 Terminator 49806 | -1/Access | Lost 3 allies 49942 | -1/Access | Lost 4 allies 50073 | -1/Access | Discovered new exit (range 10) 50207 | -1/Access | Entered Command 50207 | -1/Command | Accompanied by 18 allies 51295 | -1/Command | Spotted M Guard 51296 | -1/Command | Spotted M Guard 51299 | -1/Command | Spotted Combat Programmer 51299 | -1/Command | Spotted Combat Programmer 51322 | -1/Command | Destroyed Combat Programmer 51325 | -1/Command | Allies destroyed Combat Programmer 51325 | -1/Command | All MAIN.C guards destroyed 51353 | -1/Command | Lost 6 allies 51810 | -1/Command | Met MAIN.C 51853 | -1/Command | Identified Sigix Terminator 51901 | -1/Command | Allies destroyed MAIN.C Shell 51901 | -1/Command | MAIN.C activated Command garrisons 51931 | -1/Command | Released all parts (20) 51947 | -1/Command | Fired Sigix Terminator 51952 | -1/Command | 0b10 Conduit disabled 51962 | -1/Command | Lost 14 parts (12u2w) 51968 | -1/Command | Destroyed 28 combat bots 51970 | -1/Command | Core integrity fell below 50% 51972 | -1/Command | Lost 13 allies 51975 | -1/Command | Core integrity fell below 20% 51977 | -1/Command | System corruption reached 10% 51978 | -1/Command | Destroyed by H-88 Terminator with KE Penetrator Last Messages --------------- 51933_ Acquired 1 matter. 51934_ Colossus 10a destroyed. 51934_ P-80 Master resets P-80 Master, system corruption cleaned. 51947_ Sigix Terminator expended. 51952_ 0b10 Conduit disabled. 51952_ Knocked back. 51964_ System corrupted: Matter fused (-7). 51965_ Acquired 11 matter. 51966_ Knocked back. 51969_ Slug penetrates MAIN.C. 51971_ C-45 Heavy ARC bursts open, deploying its payload. 51971_ H-88 Terminator unfolds itself. 51972_ Penetrated by Slug. 51973_ H-88 Terminator destroyed. 51973_ Knocked back. 51973_ Acquired 6 matter. 51975_ Penetrated by Slug. 51976_ Knocked back. 51977_ Acquired 10 matter. 51978_ Slug penetrates Reinforced Barrier. Map ----- +----------------------------------------------------+ | ?????????????????????????????????????????????????? | | ?????????????????????????????????????????????????? | | ?????????????????????????????????????????????????? | | ?????????????????????????????????????????????????? | | ?????????????????????????????????????????????????? | | ?????????????????????????????????????????????????? | | ?????????????????????????????????????????????????? | | ?????????????????????????????????????????????????? | | ?????????????????????????????????????????????????? | | ?????????????????????????????????????????????????? | | ?????????????????????????????????????????????????? | | ?????????????????????????????????????????????????? | | ?????????????????????????????????????????????????? | | ?????????????????????????????????????????????????? | | ?????????????????????????????????????????????????? | | ?????????????????????????????????????????????????? | | ?????????????????????????????????????????????????? | | ?????????????????????????????????????" ????????? | | ??????????????????????????########?? " ???????? | | ?????????????????????????## # #?" " ???????? | | ???????????????????????### ##" ; ???????? | | ???????????????????????# # # ; ; ??????? | | ???????????????????????# ; ; ; ??????? | | ????????????????????????# ; ; ; ?????? | | ????????????????????????# ; ; ; ?????? | | ????????????????????????#@ ; ; ; ?????? | | ???????????????????????####;; ; ; ; ?????? | | ???????????????????????# " ; ; ; ?????? | | ???????????###############" " ; ; ; ?????? | | ?????????""" """" """"""";;;;;;;""""?????? | | ????????? "" " " "????? | | ?????????" "" """"""""""";;""""""####? | | ?????"""??"""""" " "%" % #? | | ?????? ? """ " %%%#? | | ?????"" """""" % #? | | ????#"" """"" """"""""""""""""""# ]=#? | | ????# " """""" # " #!%!#? | | ????# " "" % ##"""""""""""""""?#!%*## | | ????# " ""### " " " ?#![%!# | | ????#""""""""" """"""#?" " " " ?#[][## | | ????#"" %""""""""#?# " " " ??#%=%[! | | ????# """""""""#?? " " " ??#![==! | | ????# " " " " #?? " " " ???#[%%]% | | ????# " " " " #?? " " " ???#=%!=! | | ????" " " " """" " #?? " " " ????#!== | | ????" "" " " """"?#?? " " " ?????# # | | ????" " " " " ????# # " ???????###### | | ????# """""""""" "???????# #???????????????# | | ????# %" """ " """""??????????????????????????# | | ????# """ " " "??????????????????????????? | +----------------------------------------------------+ Best States ------------- Heat Dissipation 86 Coolant Potential 50 Energy Generation 33 Energy Capacity 2050 Matter Stores 300 Matter Capacity 300 Sight Range 24 Terrain Scan Density 10 Armor Coverage 1400 Resistance: KI 30 Resistance: EM 75 Core Shielding 90 Propulsion Shielding 33 Utility Shielding 66 Weapon Shielding 66 Point Defense Rating 480 Weapon Cycling 30 Evasion (%) 50 Targeting Accuracy 12 Recoil Reduction 2 Matter Filtering 30 Particle Charging 15 Offensive Hacking 14 Relay Coupler Types 8 Relay Coupler Value 308 Item Schematics ----------------- Adv. Gravity Neutralizer | -2/Quarantine | Archive Hvy. Tesla Rifle | -2/Quarantine | Archive Lgt. Antimatter Cannon | -2/Quarantine | Archive Exp. Matter Compressor | -2/Quarantine | Archive Cld. Antigrav System | -2/Quarantine | Archive Enh. Force Rifle | -2/Quarantine | Archive Imp. Q-thruster | -2/Quarantine | Archive Hvy. Dispersion Rifle | -2/Quarantine | Archive Cld. Proton Cannon | -2/Quarantine | Archive Cld. Q-thruster | -2/Quarantine | Archive Exp. Q-thruster | -2/Quarantine | Archive Hvy. Antimatter Reactor | -2/Quarantine | Archive Robot Schematics ------------------ R-10 Processor | -2/Quarantine | Archive L-61 Swordsman | -2/Quarantine | Archive K-01 Serf | -2/Quarantine | Archive C-55 Analyst | -2/Quarantine | Archive H-88 Terminator | -2/Quarantine | Archive T-07 Excavator | -2/Quarantine | Archive A-15 Conveyor | -2/Quarantine | Archive B-74 Champion | -2/Quarantine | Archive Fabricated ------------ Nothing Repaired ---------- Nothing Studied --------- Arm. Wheel | -9/Materials | Hacked Com. Wheel | -9/Materials | Hacked Rocket Launcher | -8/Materials | Hacked Shock Bomb Launcher | -8/Materials | Hacked Arm. Huge Wheel | -6/Factory | Hacked Remote Datajack | -6/Factory | Hacked Gauss Cannon | -6/Factory | Hacked Hvy. Rocket Launcher | -6/Factory | Hacked Adv. Assault Cannon | -6/Factory | Hacked Imp. Remote Datajack | -4/Factory | Hacked Alien Tech Used ----------------- Phase Armor Terrabomb Sigix Terminator Achievements -------------- None Challenges ------------ None Game ------ Seed AdvancedMolecularWarhead Manual? 0 Play Time 07:42:42 Cumulative 683.1 hours Start 2026.09.22 @ 16:09:02 End 2026.09.23 @ 17:51:18 Sessions 3 Manual Loads 0 Difficulty Rogue Special Mode None Game No. 360 Rogue 360 Adventurer 0 Explorer 0 Win Type - Total 22 Types 10/3/3/1/1/0/1/1/0/2 Lore% 87 Gallery% 86 Achievement% 78 Wizard Run 0 Options --------- Layout 0 ASCII 0 Keyboard 0 Movement Mouse Keybinds 0 Fullscreen 1 Font 18/SmallcapsGlow Map View 76x50 Zoom Use 0% Tactical HUD 1 Map Filters NONE Filters NONE Steam 1 RUN: 74554ca8-7392-402f-a045-f6713dd8e09e